Workbook

Sheet 39%
B1: Hi! I'm Bob Umlas. Many of the tips from this session are from my book: | G1: You can find my other books
G2: by typing UMLAS into Amazon.com
B23: My car:

Sheet Pg Setup Copies
D1: This contains page setup for
D2: page setup demo
B3: For quick formatting:
A4: Ctrl+shift+: | B4: 3 | C4: 3
A5: 1 | B5: 3 | C5: 3
A6: 2 | B6: 3 | C6: 3
A7: 3 | B7: 1900-01-03 | C7: 3
A8: 4 | B8: 3 | C8: 3
A9: 5 | B9: 3 | C9: 3
A10: 6 | B10: 3 | C10: 3
A11: ~ | B11: 3 | C11: 3
A13: 7;- | B13: border

Sheet Needs Page Setup
A1: Some Data | B1: Some Data | C1: Some Data | D1: Some Data | E1: Some Data | F1: Some Data | G1: Some Data
A2: Some Data | B2: Some Data | C2: Some Data | D2: Some Data | E2: Some Data | F2: Some Data | G2: Some Data
A3: Some Data | B3: Some Data | C3: Some Data | D3: Some Data | E3: Some Data | F3: Some Data | G3: Some Data
A4: Some Data | B4: Some Data | C4: Some Data | D4: Some Data | E4: Some Data | F4: Some Data | G4: Some Data
A5: Some Data | B5: Some Data | C5: Some Data | D5: Some Data | E5: Some Data | F5: Some Data | G5: Some Data
A6: Some Data | B6: Some Data | C6: Some Data | D6: Some Data | E6: Some Data | F6: Some Data | G6: Some Data
A7: Some Data | B7: Some Data | C7: Some Data | D7: Some Data | E7: Some Data | F7: Some Data | G7: Some Data
A8: Some Data | B8: Some Data | C8: Some Data | D8: Some Data | E8: Some Data | F8: Some Data | G8: Some Data
A9: Some Data | B9: Some Data | C9: Some Data | D9: Some Data | E9: Some Data | F9: Some Data | G9: Some Data
A10: Some Data | B10: Some Data | C10: Some Data | D10: Some Data | E10: Some Data | F10: Some Data | G10: Some Data
A11: Some Data | B11: Some Data | C11: Some Data | D11: Some Data | E11: Some Data | F11: Some Data | G11: Some Data
A12: Some Data | B12: Some Data | C12: Some Data | D12: Some Data | E12: Some Data | F12: Some Data | G12: Some Data

Sheet Bob (later) 1
A1: 1 | B1: 1
A2: 1 | B2: 1

Sheet AutoSum
A1: 65 | B1: 54 | C1: 30 | D1: 46
A2: 84 | B2: 85 | C2: 87 | D2: 74
A3: 14 | B3: 69 | C3: 78 | D3: 97
A4: 88 | B4: 42 | C4: 71 | D4: 6
A5: 5 | B5: 32 | C5: 71 | D5: 62
A6: 57 | B6: 47 | C6: 65 | D6: 2
A7: 50 | B7: 5 | C7: 63 | D7: 92
A12: 60 | B12: 60
A13: 54 | B13: 66
A14: 58 | B14: 28
A15: 57 | B15: 16
A16: 9 | B16: 14
B17: 91
A18: 34 | B18: 29
A19: 70 | B19: 16
A20: 62
A21: 70 | B21: 7
A22: 66 | B22: 68
A23: 95 | B23: 77
A24: 76 | B24: 13
A25: 46 | B25: 84
A26: 32 | B26: 70
B27: 18
A28: 49 | B28: 27
A29: 16
A30: 57 | B30: 26
A31: 12 | B31: 4
A32: 67 | B32: 44
A33: 76 | B33: 14
A34: 51

Sheet Totals
B1: 22
B2: 20
B3: 15
B4: 6
B5: 98
B6: 94
B7: 24
B8: 49
B9: 47
B10: 81
A11: Subtotal | B11: =SUM(B1:B10) -> 456
B12: 29
B13: 34
B14: 64
B15: 15
B16: 81
B17: 62
B18: 73
B19: 35
B20: 59
B21: 96
B22: 80
B23: 92
A24: Subtotal | B24: =SUM(B12:B23) -> 720
B25: 73
B26: 8
B27: 51
B28: 24
B29: 18
B30: 65
B31: 93
B32: 25
B33: 68
B34: 99
B35: 33
B36: 99
B37: 98
B38: 96
B39: 30
B40: 83
B41: 45
B42: 12
B43: 5
B44: 91
B45: 5
B46: 19
A47: Subtotal | B47: =SUM(B25:B46) -> 1140
B48: 66
B49: 16
B50: 78
B51: 19
B52: 97
B53: 41
B54: 94
B55: 14
B56: 48
B57: 38
B58: 46
B59: 40
B60: 34
B61: 50
A62: Subtotal | B62: =SUM(B48:B61) -> 681
B63: 49
B64: 49
B65: 40
B66: 13
B67: 27
B68: 76
B69: 79
B70: 97
B71: 54
B72: 89
B73: 24
B74: 59
B75: 45
A76: Subtotal | B76: =SUM(B63:B75) -> 701
B77: 29
B78: 47
B79: 18
B80: 23
B81: 19
B82: 57
B83: 71
B84: 42
B85: 58
B86: 22
B87: 3
B88: 64
B89: 54
B90: 62
B91: 66
B92: 84
B93: 20
B94: 49
B95: 65
B96: 32
B97: 47
B98: 44
B99: 24
A100: Subtotal | B100: =SUM(B77:B99) -> 1000
B101: 25
B102: 50
B103: 9
B104: 28
B105: 71
B106: 26
B107: 65
B108: 20
B109: 14
B110: 19
B111: 30
B112: 44
B113: 52
B114: 17
B115: 70
B116: 7
B117: 75
B118: 80
B119: 60
A120: Subtotal | B120: =SUM(B101:B119) -> 762
B121: 50
B122: 10
B123: 29
B124: 69
B125: 1
B126: 52
B127: 38
B128: 74
B129: 96
B130: 55
B131: 12
B132: 54
A133: Subtotal | B133: =SUM(B121:B132) -> 540
A134: Grand Total | B134: ??
B135: =B133+B120+B100+B76+B62+B47+B24+B11 -> 6000
B136: =SUMIF(A1:A133,"Subtotal",B1:B133) -> 6000
B137: =SUMPRODUCT(N(A1:A133="Subtotal"),B1:B133) -> 6000
B138: =SUM(B133,B120,B100,B76,B62,B47,B24,B11) -> 6000

Sheet Show Arrange All Order
A1: Live demo

Sheet All Chars in font
A1: ARIAL | B1: CENTURY | C1: Tahoma | D1: WINGDINGS | E1: Webdings
A2: =CHAR(ROW()) ->  | B2:  | C2:  | D2:  | E2:  | G2: Alt/7 (NK) | H2: • | J2: o
A3:  | B3:  | C3:  | D3:  | E3:  | G3: Alt/3-4-5-6 | H3: ♥♦♣♠ | J3: þ
A4:  | B4:  | C4:  | D4:  | E4: 
A5:  | B5:  | C5:  | D5:  | E5: 
A6:  | B6:  | C6:  | D6:  | E6: 
A7:  | B7:  | C7:  | D7:  | E7: 
A8:  | B8:  | C8:  | D8:  | E8: 
A12: =CHAR(ROW()) -> 
A14:  | B14:  | C14:  | D14:  | E14: 
A15:  | B15:  | C15:  | D15:  | E15: 
A16:  | B16:  | C16:  | D16:  | E16: 
A17:  | B17:  | C17:  | D17:  | E17: 
A18:  | B18:  | C18:  | D18:  | E18: 
A19:  | B19:  | C19:  | D19:  | E19: 
A20:  | B20:  | C20:  | D20:  | E20: 
A21:  | B21:  | C21:  | D21:  | E21: 
A22: =CHAR(ROW()) ->  | B22:  | C22:  | D22:  | E22: 
A23:  | B23:  | C23:  | D23:  | E23: 
A24:  | B24:  | C24:  | D24:  | E24: 
A25:  | B25:  | C25:  | D25:  | E25: 
A26:  | B26:  | C26:  | D26:  | E26: 
A27:  | B27:  | C27:  | D27:  | E27: 
A32: =CHAR(ROW()) -> 
A33: ! | B33: ! | C33: ! | D33: ! | E33: !
A34: " | B34: " | C34: " | D34: " | E34: "
A35: # | B35: # | C35: # | D35: # | E35: #
A36: $ | B36: $ | C36: $ | D36: $ | E36: $
A37: % | B37: % | C37: % | D37: % | E37: %
A38: & | B38: & | C38: & | D38: & | E38: &
A39: ' | B39: ' | C39: ' | D39: ' | E39: '
A40: ( | B40: ( | C40: ( | D40: ( | E40: (
A41: ) | B41: ) | C41: ) | D41: ) | E41: )
A42: =CHAR(ROW()) -> * | B42: * | C42: * | D42: * | E42: *
A43: + | B43: + | C43: + | D43: + | E43: +
A44: , | B44: , | C44: , | D44: , | E44: ,
A45: - | B45: - | C45: - | D45: - | E45: -
A46: . | B46: . | C46: . | D46: . | E46: .
A47: / | B47: / | C47: / | D47: / | E47: /
A48: 0 | B48: 0 | C48: 0 | D48: 0 | E48: 0
A49: 1 | B49: 1 | C49: 1 | D49: 1 | E49: 1
A50: 2 | B50: 2 | C50: 2 | D50: 2 | E50: 2
A51: 3 | B51: 3 | C51: 3 | D51: 3 | E51: 3
A52: =CHAR(ROW()) -> 4 | B52: 4 | C52: 4 | D52: 4 | E52: 4
A53: 5 | B53: 5 | C53: 5 | D53: 5 | E53: 5
A54: 6 | B54: 6 | C54: 6 | D54: 6 | E54: 6
A55: 7 | B55: 7 | C55: 7 | D55: 7 | E55: 7
A56: 8 | B56: 8 | C56: 8 | D56: 8 | E56: 8
A57: 9 | B57: 9 | C57: 9 | D57: 9 | E57: 9
A58: : | B58: : | C58: : | D58: : | E58: :
A59: ; | B59: ; | C59: ; | D59: ; | E59: ;
A60: < | B60: < | C60: < | D60: < | E60: <
A61: = | B61: = | C61: = | D61: = | E61: =
A62: =CHAR(ROW()) -> > | B62: > | C62: > | D62: > | E62: >
A63: ? | B63: ? | C63: ? | D63: ? | E63: ?
A64: @ | B64: @ | C64: @ | D64: @ | E64: @
A65: A | B65: A | C65: A | D65: A | E65: A
A66: B | B66: B | C66: B | D66: B | E66: B
A67: C | B67: C | C67: C | D67: C | E67: C
A68: D | B68: D | C68: D | D68: D | E68: D
A69: E | B69: E | C69: E | D69: E | E69: E
A70: F | B70: F | C70: F | D70: F | E70: F
A71: G | B71: G | C71: G | D71: G | E71: G
A72: =CHAR(ROW()) -> H | B72: H | C72: H | D72: H | E72: H
A73: I | B73: I | C73: I | D73: I | E73: I
A74: J | B74: J | C74: J | D74: J | E74: J
A75: K | B75: K | C75: K | D75: K | E75: K
A76: L | B76: L | C76: L | D76: L | E76: L
A77: M | B77: M | C77: M | D77: M | E77: M
A78: N | B78: N | C78: N | D78: N | E78: N
A79: O | B79: O | C79: O | D79: O | E79: O
A80: P | B80: P | C80: P | D80: P | E80: P
A81: Q | B81: Q | C81: Q | D81: Q | E81: Q
A82: =CHAR(ROW()) -> R | B82: R | C82: R | D82: R | E82: R
A83: S | B83: S | C83: S | D83: S | E83: S
A84: T | B84: T | C84: T | D84: T | E84: T
A85: U | B85: U | C85: U | D85: U | E85: U
A86: V | B86: V | C86: V | D86: V | E86: V
A87: W | B87: W | C87: W | D87: W | E87: W
A88: X | B88: X | C88: X | D88: X | E88: X
A89: Y | B89: Y | C89: Y | D89: Y | E89: Y
A90: Z | B90: Z | C90: Z | D90: Z | E90: Z
A91: [ | B91: [ | C91: [ | D91: [ | E91: [
A92: =CHAR(ROW()) -> \ | B92: \ | C92: \ | D92: \ | E92: \
A93: ] | B93: ] | C93: ] | D93: ] | E93: ]
A94: ^ | B94: ^ | C94: ^ | D94: ^ | E94: ^
A95: _ | B95: _ | C95: _ | D95: _ | E95: _
A96: ` | B96: ` | C96: ` | D96: ` | E96: `
A97: a | B97: a | C97: a | D97: a | E97: a
A98: b | B98: b | C98: b | D98: b | E98: b
A99: c | B99: c | C99: c | D99: c | E99: c
A100: d | B100: d | C100: d | D100: d | E100: d
A101: e | B101: e | C101: e | D101: e | E101: e
A102: =CHAR(ROW()) -> f | B102: f | C102: f | D102: f | E102: f
A103: g | B103: g | C103: g | D103: g | E103: g
A104: h | B104: h | C104: h | D104: h | E104: h
A105: i | B105: i | C105: i | D105: i | E105: i
A106: j | B106: j | C106: j | D106: j | E106: j
A107: k | B107: k | C107: k | D107: k | E107: k
A108: l | B108: l | C108: l | D108: l | E108: l
A109: m | B109: m | C109: m | D109: m | E109: m
A110: n | B110: n | C110: n | D110: n | E110: n
A111: o | B111: o | C111: o | D111: o | E111: o
A112: =CHAR(ROW()) -> p | B112: p | C112: p | D112: p | E112: p
A113: q | B113: q | C113: q | D113: q | E113: q
A114: r | B114: r | C114: r | D114: r | E114: r
A115: s | B115: s | C115: s | D115: s | E115: s
A116: t | B116: t | C116: t | D116: t | E116: t
A117: u | B117: u | C117: u | D117: u | E117: u
A118: v | B118: v | C118: v | D118: v | E118: v
A119: w | B119: w | C119: w | D119: w | E119: w
A120: x | B120: x | C120: x | D120: x | E120: x
A121: y | B121: y | C121: y | D121: y | E121: y
A122: =CHAR(ROW()) -> z | B122: z | C122: z | D122: z | E122: z
A123: { | B123: { | C123: { | D123: { | E123: {
A124: | | B124: | | C124: | | D124: | | E124: |
A125: } | B125: } | C125: } | D125: } | E125: }
A126: ~ | B126: ~ | C126: ~ | D126: ~ | E126: ~
A127:  | B127:  | C127:  | D127:  | E127: 
A128: € | B128: € | C128: € | D128: € | E128: €
A129:  | B129:  | C129:  | D129:  | E129: 
A130: ‚ | B130: ‚ | C130: ‚ | D130: ‚ | E130: ‚
A131: ƒ | B131: ƒ | C131: ƒ | D131: ƒ | E131: ƒ
A132: =CHAR(ROW()) -> „ | B132: „ | C132: „ | D132: „ | E132: „
A133: … | B133: … | C133: … | D133: … | E133: …
A134: † | B134: † | C134: † | D134: † | E134: †
A135: ‡ | B135: ‡ | C135: ‡ | D135: ‡ | E135: ‡
A136: ˆ | B136: ˆ | C136: ˆ | D136: ˆ | E136: ˆ
A137: ‰ | B137: ‰ | C137: ‰ | D137: ‰ | E137: ‰
A138: Š | B138: Š | C138: Š | D138: Š | E138: Š
A139: ‹ | B139: ‹ | C139: ‹ | D139: ‹ | E139: ‹
A140: Œ | B140: Œ | C140: Œ | D140: Œ | E140: Œ
A141:  | B141:  | C141:  | D141:  | E141: 
A142: =CHAR(ROW()) -> Ž | B142: Ž | C142: Ž | D142: Ž | E142: Ž
A143:  | B143:  | C143:  | D143:  | E143: 
A144:  | B144:  | C144:  | D144:  | E144: 
A145: ‘ | B145: ‘ | C145: ‘ | D145: ‘ | E145: ‘
A146: ’ | B146: ’ | C146: ’ | D146: ’ | E146: ’
A147: “ | B147: “ | C147: “ | D147: “ | E147: “
A148: ” | B148: ” | C148: ” | D148: ” | E148: ”
A149: • | B149: • | C149: • | D149: • | E149: •
A150: – | B150: – | C150: – | D150: – | E150: –
A151: — | B151: — | C151: — | D151: — | E151: —
A152: =CHAR(ROW()) -> ˜ | B152: ˜ | C152: ˜ | D152: ˜ | E152: ˜
A153: ™ | B153: ™ | C153: ™ | D153: ™ | E153: ™
A154: š | B154: š | C154: š | D154: š | E154: š
A155: › | B155: › | C155: › | D155: › | E155: ›
A156: œ | B156: œ | C156: œ | D156: œ | E156: œ
A157:  | B157:  | C157:  | D157:  | E157: 
A158: ž | B158: ž | C158: ž | D158: ž | E158: ž
A159: Ÿ | B159: Ÿ | C159: Ÿ | D159: Ÿ | E159: Ÿ
A161: ¡ | B161: ¡ | C161: ¡ | D161: ¡ | E161: ¡
A162: =CHAR(ROW()) -> ¢ | B162: ¢ | C162: ¢ | D162: ¢ | E162: ¢
A163: £ | B163: £ | C163: £ | D163: £ | E163: £
A164: ¤ | B164: ¤ | C164: ¤ | D164: ¤ | E164: ¤
A165: ¥ | B165: ¥ | C165: ¥ | D165: ¥ | E165: ¥
A166: ¦ | B166: ¦ | C166: ¦ | D166: ¦ | E166: ¦
A167: § | B167: § | C167: § | D167: § | E167: §
A168: ¨ | B168: ¨ | C168: ¨ | D168: ¨ | E168: ¨
A169: © | B169: © | C169: © | D169: © | E169: ©
A170: ª | B170: ª | C170: ª | D170: ª | E170: ª
A171: « | B171: « | C171: « | D171: « | E171: «
A172: =CHAR(ROW()) -> ¬ | B172: ¬ | C172: ¬ | D172: ¬ | E172: ¬
A173: ­ | B173: ­ | C173: ­ | D173: ­ | E173: ­
A174: ® | B174: ® | C174: ® | D174: ® | E174: ®
A175: ¯ | B175: ¯ | C175: ¯ | D175: ¯ | E175: ¯
A176: ° | B176: ° | C176: ° | D176: ° | E176: °
A177: ± | B177: ± | C177: ± | D177: ± | E177: ±
A178: ² | B178: ² | C178: ² | D178: ² | E178: ²
A179: ³ | B179: ³ | C179: ³ | D179: ³ | E179: ³
A180: ´ | B180: ´ | C180: ´ | D180: ´ | E180: ´
A181: µ | B181: µ | C181: µ | D181: µ | E181: µ
A182: =CHAR(ROW()) -> ¶ | B182: ¶ | C182: ¶ | D182: ¶ | E182: ¶
A183: · | B183: · | C183: · | D183: · | E183: ·
A184: ¸ | B184: ¸ | C184: ¸ | D184: ¸ | E184: ¸
A185: ¹ | B185: ¹ | C185: ¹ | D185: ¹ | E185: ¹
A186: º | B186: º | C186: º | D186: º | E186: º
A187: » | B187: » | C187: » | D187: » | E187: »
A188: ¼ | B188: ¼ | C188: ¼ | D188: ¼ | E188: ¼
A189: ½ | B189: ½ | C189: ½ | D189: ½ | E189: ½
A190: ¾ | B190: ¾ | C190: ¾ | D190: ¾ | E190: ¾
A191: ¿ | B191: ¿ | C191: ¿ | D191: ¿ | E191: ¿
A192: =CHAR(ROW()) -> À | B192: À | C192: À | D192: À | E192: À
A193: Á | B193: Á | C193: Á | D193: Á | E193: Á
A194: Â | B194: Â | C194: Â | D194: Â | E194: Â
A195: Ã | B195: Ã | C195: Ã | D195: Ã | E195: Ã
A196: Ä | B196: Ä | C196: Ä | D196: Ä | E196: Ä
A197: Å | B197: Å | C197: Å | D197: Å | E197: Å
A198: Æ | B198: Æ | C198: Æ | D198: Æ | E198: Æ
A199: Ç | B199: Ç | C199: Ç | D199: Ç | E199: Ç
A200: È | B200: È | C200: È | D200: È | E200: È
A201: É | B201: É | C201: É | D201: É | E201: É
A202: =CHAR(ROW()) -> Ê | B202: Ê | C202: Ê | D202: Ê | E202: Ê
A203: Ë | B203: Ë | C203: Ë | D203: Ë | E203: Ë
A204: Ì | B204: Ì | C204: Ì | D204: Ì | E204: Ì
A205: Í | B205: Í | C205: Í | D205: Í | E205: Í
A206: Î | B206: Î | C206: Î | D206: Î | E206: Î
A207: Ï | B207: Ï | C207: Ï | D207: Ï | E207: Ï
A208: Ð | B208: Ð | C208: Ð | D208: Ð | E208: Ð
A209: Ñ | B209: Ñ | C209: Ñ | D209: Ñ | E209: Ñ
... 46 more rows

Sheet Formatting Errors
B1: By Number Formatting | C1: By Conditional Formatting | D1: Usual | E1: By Formula
A2: Numerator | B2: =A3/A5 -> 10 | C2: =A3/A5 -> 10 | D2: =A3/A5 -> 10 | E2: =IF(A5=0,"",A3/A5) -> 10
A3: 15000
A4: Denominator
A5: 1500

Sheet Only Unique
A1: 1 | D1: Can contain only unique values
A2: 2 | D2: 1
A3: 3 | D3: 2
A4: 4 | D4: 3
A5: 4 | D5: 4
A6: 1 | D6: 5
A7: 2 | D7: 6
A8: 2
A9: 1
A10: 2
A11: 2

Sheet For Later (Bob)
A1: 2 | B1: 2
A2: 2 | B2: 2

Sheet Filling Holes
A1: State | B1: Region | C1: Amount
A2: PA | B2: North | C2: 300
C3: 104
C4: 159
C5: 749
B6: South | C6: 700
C7: 348
C8: 508
C9: 935
C10: 582
A11: WA | B11: North | C11: 377
C12: 936
B13: South | C13: 831
C14: 243
C15: 344
A16: NY | B16: North | C16: 97
C17: 120
B18: South | C18: 577
C19: 955
A20: TN | B20: North | C20: 751
C21: 62
C22: 306
C23: 955
B24: South | C24: 124
C25: 514
C26: 703
C27: 742
C28: 573
A29: MA | B29: North | C29: 267
C30: 204
C31: 251
C32: 286
C33: 142
C34: 120
C35: 20
B36: South | C36: 632
C37: 532
C38: 7
C39: 545
C40: 310
C41: 292
C42: 657
C43: 406
C44: 163
C45: 100
A46: CA | B46: North | C46: 240
C47: 139
C48: 386
C49: 176
C50: 65
B51: South | C51: 161
C52: 231
C53: 230
C54: 242
C55: 273
C56: 273
C57: 525
C58: 330
A59: ID | B59: North | C59: 53
C60: 680
C61: 235
C62: 186
C63: 519
C64: 210
B65: South | C65: 603
C66: 315
C67: 243
C68: 174
C69: 106
C70: 689
C71: 388
A72: NV | B72: North | C72: 388
C73: 388
C74: 195
C75: 242
C76: 135
B77: South | C77: 106
C78: 305
C79: 0
C80: 333
C81: 317
A82: NM | B82: North | C82: 83
C83: 173
C84: 125
C85: 516
B86: South | C86: 166
C87: 573
C88: 382
C89: 472
C90: 589
C91: 269
C92: 196
C93: 575
C94: 188
C95: 608
C96: 627
C97: 460
C98: 352
C99: 81

Sheet Skip Blanks
A1: a | B1: b
A3: c | B3: d
A5: e | B5: f
A7: g | B7: h
A9: i | B9: j
A11: k | B11: l
A13: m | B13: n
A15: o | B15: p
A17: q | B17: r
A19: s | B19: t
A21: u | B21: v
A23: w | B23: x
A25: y | B25: z

Sheet Distribute
C1: 123
E2: =(C15-C1)/(ROW(C15)-ROW(C1)) -> 30.78571429
C15: 554

Sheet Files etc
A1: Files | B1: Excel Files | C1: Tab Names | D1: Fl | E1: =TRANSPOSE(FILES())
A2: =Fl | B2: =FLx | C2: =TabNames | D2: Flx | E2: =TRANSPOSE(FILES("*.xl*"))
D3: TabNames | E3: =SORT(TRANSPOSE(MID(GET.WORKBOOK(1),FIND("]",GET.WORKBOOK(1))+1,255)))

Sheet Mirror
A1: 4

Sheet Enter Totals
B1: Jan | C1: % of Q Total | D1: Feb | E1: % of Q Total | F1: Mar | G1: % of Q Total | H1: Q1 | I1: Apr | J1: % of Q Total | K1: May | L1: % of Q Total | M1: Jun | N1: % of Q Total | O1: Q2 | P1: Jul | Q1: % of Q Total | R1: Aug | S1: % of Q Total | T1: Sep | U1: % of Q Total | V1: Q3 | W1: Oct | X1: % of Q Total | Y1: Nov | Z1: % of Q Total | AA1: Dec | AB1: % of Q Total | AC1: Q4
B2: 285 | C2: =B2/H2 -> 0.1744186047 | D2: 857 | E2: =D2/H2 -> 0.5244798042 | F2: 492 | G2: =F2/H2 -> 0.3011015912 | H2: =B2+D2+F2 -> 1634 | I2: 582 | J2: =I2/O2 -> 0.3581538462 | K2: 272 | L2: =K2/O2 -> 0.1673846154 | M2: 771 | N2: =M2/O2 -> 0.4744615385 | O2: =I2+K2+M2 -> 1625 | P2: 633 | Q2: =P2/V2 -> 0.5310402685 | R2: 511 | S2: =R2/V2 -> 0.4286912752 | T2: 48 | U2: =T2/V2 -> 0.04026845638 | V2: =P2+R2+T2 -> 1192 | W2: 616 | X2: =W2/AC2 -> 0.2840018442 | Y2: 921 | Z2: =Y2/AC2 -> 0.4246196404 | AA2: 632 | AB2: =AA2/AC2 -> 0.2913785154 | AC2: =W2+Y2+AA2 -> 2169
B3: 353 | C3: =B3/H3 -> 0.6549165121 | D3: 49 | E3: =D3/H3 -> 0.09090909091 | F3: 137 | G3: =F3/H3 -> 0.254174397 | H3: 539 | I3: 704 | J3: =I3/O3 -> 0.330206379 | K3: 912 | L3: =K3/O3 -> 0.4277673546 | M3: 516 | N3: =M3/O3 -> 0.2420262664 | O3: 2132 | P3: 171 | Q3: =P3/V3 -> 0.1644230769 | R3: 431 | S3: =R3/V3 -> 0.4144230769 | T3: 438 | U3: =T3/V3 -> 0.4211538462 | V3: 1040 | W3: 251 | X3: =W3/AC3 -> 0.2653276956 | Y3: 310 | Z3: =Y3/AC3 -> 0.3276955603 | AA3: 385 | AB3: =AA3/AC3 -> 0.4069767442 | AC3: =W3+Y3+AA3 -> 946
B4: 339 | C4: 0.3542319749 | D4: 525 | E4: 0.5485893417 | F4: 93 | G4: 0.09717868339 | H4: 957 | I4: 28 | J4: 0.1255605381 | K4: 73 | L4: 0.3273542601 | M4: 122 | N4: 0.5470852018 | O4: 223 | P4: 228 | Q4: 0.1710427607 | R4: 724 | S4: 0.5431357839 | T4: 381 | U4: 0.2858214554 | V4: 1333 | W4: 531 | X4: 0.4174528302 | Y4: 710 | Z4: 0.5581761006 | AA4: 31 | AB4: 0.02437106918 | AC4: 1272
B5: 664 | C5: 0.3387755102 | D5: 564 | E5: 0.287755102 | F5: 732 | G5: 0.3734693878 | H5: 1960 | I5: 719 | J5: 0.505981703 | K5: 623 | L5: 0.4384236453 | M5: 79 | N5: 0.05559465165 | O5: 1421 | P5: 911 | Q5: 0.3881550916 | R5: 742 | S5: 0.3161482744 | T5: 694 | U5: 0.295696634 | V5: 2347 | W5: 389 | X5: 0.3034321373 | Y5: 371 | Z5: 0.2893915757 | AA5: 522 | AB5: 0.4071762871 | AC5: 1282
B6: 584 | C6: 0.336018412 | D6: 650 | E6: 0.3739930955 | F6: 504 | G6: 0.2899884925 | H6: 1738 | I6: 702 | J6: 0.2945866555 | K6: 813 | L6: 0.3411665967 | M6: 868 | N6: 0.3642467478 | O6: 2383 | P6: 599 | Q6: 0.3899739583 | R6: 547 | S6: 0.3561197917 | T6: 390 | U6: 0.25390625 | V6: 1536 | W6: 986 | X6: 0.3607757044 | Y6: 756 | Z6: 0.2766190999 | AA6: 991 | AB6: 0.3626051958 | AC6: 2733
B7: 141 | C7: 0.08483754513 | D7: 732 | E7: 0.440433213 | F7: 789 | G7: 0.4747292419 | H7: 1662 | I7: 935 | J7: 0.6032258065 | K7: 475 | L7: 0.3064516129 | M7: 140 | N7: 0.09032258065 | O7: 1550 | P7: 911 | Q7: 0.64978602 | R7: 409 | S7: 0.2917261056 | T7: 82 | U7: 0.05848787447 | V7: 1402 | W7: 733 | X7: 0.4381350867 | Y7: 657 | Z7: 0.3927077107 | AA7: 283 | AB7: 0.1691572026 | AC7: 1673
B8: 232 | C8: 0.1646557842 | D8: 986 | E8: 0.699787083 | F8: 191 | G8: 0.1355571327 | H8: 1409 | I8: 461 | J8: 0.3360058309 | K8: 326 | L8: 0.2376093294 | M8: 585 | N8: 0.4263848397 | O8: 1372 | P8: 263 | Q8: 0.140566542 | R8: 953 | S8: 0.509353287 | T8: 655 | U8: 0.350080171 | V8: 1871 | W8: 561 | X8: 0.2672701286 | Y8: 957 | Z8: 0.4559313959 | AA8: 581 | AB8: 0.2767984755 | AC8: 2099
B9: 623 | C9: 0.6048543689 | D9: 173 | E9: 0.167961165 | F9: 234 | G9: 0.227184466 | H9: 1030 | I9: 286 | J9: 0.2763285024 | K9: 402 | L9: 0.3884057971 | M9: 347 | N9: 0.3352657005 | O9: 1035 | P9: 690 | Q9: 0.4551451187 | R9: 476 | S9: 0.3139841689 | T9: 350 | U9: 0.2308707124 | V9: 1516 | W9: 967 | X9: 0.423380035 | Y9: 531 | Z9: 0.2324868651 | AA9: 786 | AB9: 0.3441330998 | AC9: 2284
B10: 932 | C10: 0.4846593864 | D10: 280 | E10: 0.1456058242 | F10: 711 | G10: 0.3697347894 | H10: 1923 | I10: 369 | J10: 0.2009803922 | K10: 869 | L10: 0.4733115468 | M10: 598 | N10: 0.325708061 | O10: 1836 | P10: 8 | Q10: 0.009248554913 | R10: 525 | S10: 0.6069364162 | T10: 332 | U10: 0.3838150289 | V10: 865 | W10: 456 | X10: 0.2807881773 | Y10: 469 | Z10: 0.2887931034 | AA10: 699 | AB10: 0.4304187192 | AC10: 1624
B11: 933 | C11: 0.4317445627 | D11: 512 | E11: 0.2369273484 | F11: 716 | G11: 0.3313280888 | H11: 2161 | I11: 16 | J11: 0.02253521127 | K11: 564 | L11: 0.7943661972 | M11: 130 | N11: 0.1830985915 | O11: 710 | P11: 893 | Q11: 0.6933229814 | R11: 268 | S11: 0.2080745342 | T11: 127 | U11: 0.09860248447 | V11: 1288 | W11: 202 | X11: 0.1515378845 | Y11: 684 | Z11: 0.5131282821 | AA11: 447 | AB11: 0.3353338335 | AC11: 1333
B12: 350 | C12: 0.1880709296 | D12: 826 | E12: 0.4438473939 | F12: 685 | G12: 0.3680816765 | H12: 1861 | I12: 156 | J12: 0.1337907376 | K12: 874 | L12: 0.7495711835 | M12: 136 | N12: 0.1166380789 | O12: 1166 | P12: 890 | Q12: 0.7247557003 | R12: 260 | S12: 0.2117263844 | T12: 78 | U12: 0.06351791531 | V12: 1228 | W12: 584 | X12: 0.2981112813 | Y12: 596 | Z12: 0.3042368555 | AA12: 779 | AB12: 0.3976518632 | AC12: 1959
A13: Total | B13: =SUM(B2:B12) -> 5436

Sheet Change Row Height
A1: Department
A2: Accounting
A3: Accounting
A4: Accounting
A5: Accounting
A6: Accounting
A7: Accounting
A8: Accounting
A9: Accounting
A10: Accounting
A11: Accounting
A12: Accounting
A13: Accounting
A14: Accounting
A15: Accounting
A16: Accounting
A17: Accounting
A18: Accounting
A19: Accounting
A20: Accounting
A21: Personnel
A22: Personnel
A23: Personnel
A24: Personnel
A25: Personnel
A26: Personnel
A27: Personnel
A28: Personnel
A29: Personnel
A30: IS
A31: IS
A32: IS
A33: IS
A34: IS
A35: IS
A36: IS
A37: IS
A38: IS
A39: IS
A40: IS
A41: IS
A42: IS
A43: IS
A44: IS
A45: IS
A46: IS
A47: IS
A48: IS
A49: IS
A50: IS
A51: IS
A52: IS

Sheet TextToColumns
A1: 20101026
A2: 20100405
A3: 20080110
A4: 20080904
A5: 20090108
A7: bob umlas
A8: bill clinton
A9: george bush
A10: barack obama
A14: Now is the time for all good men to come to the aid of their party!

Sheet Double-Space
A1: lots of stuff 1 | B1: lots of stuff 1 | C1: lots of stuff 1 | D1: lots of stuff 1
A2: lots of stuff 2 | B2: lots of stuff 2 | C2: lots of stuff 2 | D2: lots of stuff 2
A3: lots of stuff 3 | B3: lots of stuff 3 | C3: lots of stuff 3 | D3: lots of stuff 3
A4: lots of stuff 4 | B4: lots of stuff 4 | C4: lots of stuff 4 | D4: lots of stuff 4
A5: lots of stuff 5 | B5: lots of stuff 5 | C5: lots of stuff 5 | D5: lots of stuff 5
A6: lots of stuff 6 | B6: lots of stuff 6 | C6: lots of stuff 6 | D6: lots of stuff 6
A7: lots of stuff 7 | B7: lots of stuff 7 | C7: lots of stuff 7 | D7: lots of stuff 7
A8: lots of stuff 8 | B8: lots of stuff 8 | C8: lots of stuff 8 | D8: lots of stuff 8
A9: lots of stuff 9 | B9: lots of stuff 9 | C9: lots of stuff 9 | D9: lots of stuff 9
A10: lots of stuff 10 | B10: lots of stuff 10 | C10: lots of stuff 10 | D10: lots of stuff 10
A11: lots of stuff 11 | B11: lots of stuff 11 | C11: lots of stuff 11 | D11: lots of stuff 11
A12: lots of stuff 12 | B12: lots of stuff 12 | C12: lots of stuff 12 | D12: lots of stuff 12
A13: lots of stuff 13 | B13: lots of stuff 13 | C13: lots of stuff 13 | D13: lots of stuff 13
A14: lots of stuff 14 | B14: lots of stuff 14 | C14: lots of stuff 14 | D14: lots of stuff 14
A15: lots of stuff 15 | B15: lots of stuff 15 | C15: lots of stuff 15 | D15: lots of stuff 15
A16: lots of stuff 16 | B16: lots of stuff 16 | C16: lots of stuff 16 | D16: lots of stuff 16
A17: lots of stuff 17 | B17: lots of stuff 17 | C17: lots of stuff 17 | D17: lots of stuff 17
A18: lots of stuff 18 | B18: lots of stuff 18 | C18: lots of stuff 18 | D18: lots of stuff 18
A19: lots of stuff 19 | B19: lots of stuff 19 | C19: lots of stuff 19 | D19: lots of stuff 19
A20: lots of stuff 20 | B20: lots of stuff 20 | C20: lots of stuff 20 | D20: lots of stuff 20
A21: lots of stuff 21 | B21: lots of stuff 21 | C21: lots of stuff 21 | D21: lots of stuff 21
A22: lots of stuff 22 | B22: lots of stuff 22 | C22: lots of stuff 22 | D22: lots of stuff 22
A23: lots of stuff 23 | B23: lots of stuff 23 | C23: lots of stuff 23 | D23: lots of stuff 23
A24: lots of stuff 24 | B24: lots of stuff 24 | C24: lots of stuff 24 | D24: lots of stuff 24
A25: lots of stuff 25 | B25: lots of stuff 25 | C25: lots of stuff 25 | D25: lots of stuff 25
A26: lots of stuff 26 | B26: lots of stuff 26 | C26: lots of stuff 26 | D26: lots of stuff 26
A27: lots of stuff 27 | B27: lots of stuff 27 | C27: lots of stuff 27 | D27: lots of stuff 27
A28: lots of stuff 28 | B28: lots of stuff 28 | C28: lots of stuff 28 | D28: lots of stuff 28
A29: lots of stuff 29 | B29: lots of stuff 29 | C29: lots of stuff 29 | D29: lots of stuff 29
A30: lots of stuff 30 | B30: lots of stuff 30 | C30: lots of stuff 30 | D30: lots of stuff 30
A31: lots of stuff 31 | B31: lots of stuff 31 | C31: lots of stuff 31 | D31: lots of stuff 31
A32: lots of stuff 32 | B32: lots of stuff 32 | C32: lots of stuff 32 | D32: lots of stuff 32
A33: lots of stuff 33 | B33: lots of stuff 33 | C33: lots of stuff 33 | D33: lots of stuff 33
A34: lots of stuff 34 | B34: lots of stuff 34 | C34: lots of stuff 34 | D34: lots of stuff 34
A35: lots of stuff 35 | B35: lots of stuff 35 | C35: lots of stuff 35 | D35: lots of stuff 35
A36: lots of stuff 36 | B36: lots of stuff 36 | C36: lots of stuff 36 | D36: lots of stuff 36
A37: lots of stuff 37 | B37: lots of stuff 37 | C37: lots of stuff 37 | D37: lots of stuff 37
A38: lots of stuff 38 | B38: lots of stuff 38 | C38: lots of stuff 38 | D38: lots of stuff 38
A39: lots of stuff 39 | B39: lots of stuff 39 | C39: lots of stuff 39 | D39: lots of stuff 39
A40: lots of stuff 40 | B40: lots of stuff 40 | C40: lots of stuff 40 | D40: lots of stuff 40
A41: lots of stuff 41 | B41: lots of stuff 41 | C41: lots of stuff 41 | D41: lots of stuff 41
A42: lots of stuff 42 | B42: lots of stuff 42 | C42: lots of stuff 42 | D42: lots of stuff 42
A43: lots of stuff 43 | B43: lots of stuff 43 | C43: lots of stuff 43 | D43: lots of stuff 43
A44: lots of stuff 44 | B44: lots of stuff 44 | C44: lots of stuff 44 | D44: lots of stuff 44
A45: lots of stuff 45 | B45: lots of stuff 45 | C45: lots of stuff 45 | D45: lots of stuff 45
A46: lots of stuff 46 | B46: lots of stuff 46 | C46: lots of stuff 46 | D46: lots of stuff 46
A47: lots of stuff 47 | B47: lots of stuff 47 | C47: lots of stuff 47 | D47: lots of stuff 47
A48: lots of stuff 48 | B48: lots of stuff 48 | C48: lots of stuff 48 | D48: lots of stuff 48
A49: lots of stuff 49 | B49: lots of stuff 49 | C49: lots of stuff 49 | D49: lots of stuff 49
A50: lots of stuff 50 | B50: lots of stuff 50 | C50: lots of stuff 50 | D50: lots of stuff 50
A51: lots of stuff 51 | B51: lots of stuff 51 | C51: lots of stuff 51 | D51: lots of stuff 51
A52: lots of stuff 52 | B52: lots of stuff 52 | C52: lots of stuff 52 | D52: lots of stuff 52
A53: lots of stuff 53 | B53: lots of stuff 53 | C53: lots of stuff 53 | D53: lots of stuff 53
A54: lots of stuff 54 | B54: lots of stuff 54 | C54: lots of stuff 54 | D54: lots of stuff 54
A55: lots of stuff 55 | B55: lots of stuff 55 | C55: lots of stuff 55 | D55: lots of stuff 55
A56: lots of stuff 56 | B56: lots of stuff 56 | C56: lots of stuff 56 | D56: lots of stuff 56
A57: lots of stuff 57 | B57: lots of stuff 57 | C57: lots of stuff 57 | D57: lots of stuff 57
A58: lots of stuff 58 | B58: lots of stuff 58 | C58: lots of stuff 58 | D58: lots of stuff 58
A59: lots of stuff 59 | B59: lots of stuff 59 | C59: lots of stuff 59 | D59: lots of stuff 59
A60: lots of stuff 60 | B60: lots of stuff 60 | C60: lots of stuff 60 | D60: lots of stuff 60
A61: lots of stuff 61 | B61: lots of stuff 61 | C61: lots of stuff 61 | D61: lots of stuff 61
A62: lots of stuff 62 | B62: lots of stuff 62 | C62: lots of stuff 62 | D62: lots of stuff 62
A63: lots of stuff 63 | B63: lots of stuff 63 | C63: lots of stuff 63 | D63: lots of stuff 63
A64: lots of stuff 64 | B64: lots of stuff 64 | C64: lots of stuff 64 | D64: lots of stuff 64
A65: lots of stuff 65 | B65: lots of stuff 65 | C65: lots of stuff 65 | D65: lots of stuff 65
A66: lots of stuff 66 | B66: lots of stuff 66 | C66: lots of stuff 66 | D66: lots of stuff 66
A67: lots of stuff 67 | B67: lots of stuff 67 | C67: lots of stuff 67 | D67: lots of stuff 67
A68: lots of stuff 68 | B68: lots of stuff 68 | C68: lots of stuff 68 | D68: lots of stuff 68
A69: lots of stuff 69 | B69: lots of stuff 69 | C69: lots of stuff 69 | D69: lots of stuff 69
A70: lots of stuff 70 | B70: lots of stuff 70 | C70: lots of stuff 70 | D70: lots of stuff 70
A71: lots of stuff 71 | B71: lots of stuff 71 | C71: lots of stuff 71 | D71: lots of stuff 71
A72: lots of stuff 72 | B72: lots of stuff 72 | C72: lots of stuff 72 | D72: lots of stuff 72
A73: lots of stuff 73 | B73: lots of stuff 73 | C73: lots of stuff 73 | D73: lots of stuff 73
A74: lots of stuff 74 | B74: lots of stuff 74 | C74: lots of stuff 74 | D74: lots of stuff 74
A75: lots of stuff 75 | B75: lots of stuff 75 | C75: lots of stuff 75 | D75: lots of stuff 75
A76: lots of stuff 76 | B76: lots of stuff 76 | C76: lots of stuff 76 | D76: lots of stuff 76
A77: lots of stuff 77 | B77: lots of stuff 77 | C77: lots of stuff 77 | D77: lots of stuff 77
A78: lots of stuff 78 | B78: lots of stuff 78 | C78: lots of stuff 78 | D78: lots of stuff 78
A79: lots of stuff 79 | B79: lots of stuff 79 | C79: lots of stuff 79 | D79: lots of stuff 79
A80: lots of stuff 80 | B80: lots of stuff 80 | C80: lots of stuff 80 | D80: lots of stuff 80
A81: lots of stuff 81 | B81: lots of stuff 81 | C81: lots of stuff 81 | D81: lots of stuff 81
A82: lots of stuff 82 | B82: lots of stuff 82 | C82: lots of stuff 82 | D82: lots of stuff 82
A83: lots of stuff 83 | B83: lots of stuff 83 | C83: lots of stuff 83 | D83: lots of stuff 83
A84: lots of stuff 84 | B84: lots of stuff 84 | C84: lots of stuff 84 | D84: lots of stuff 84
A85: lots of stuff 85 | B85: lots of stuff 85 | C85: lots of stuff 85 | D85: lots of stuff 85
A86: lots of stuff 86 | B86: lots of stuff 86 | C86: lots of stuff 86 | D86: lots of stuff 86
A87: lots of stuff 87 | B87: lots of stuff 87 | C87: lots of stuff 87 | D87: lots of stuff 87
A88: lots of stuff 88 | B88: lots of stuff 88 | C88: lots of stuff 88 | D88: lots of stuff 88
A89: lots of stuff 89 | B89: lots of stuff 89 | C89: lots of stuff 89 | D89: lots of stuff 89
A90: lots of stuff 90 | B90: lots of stuff 90 | C90: lots of stuff 90 | D90: lots of stuff 90
A91: lots of stuff 91 | B91: lots of stuff 91 | C91: lots of stuff 91 | D91: lots of stuff 91
A92: lots of stuff 92 | B92: lots of stuff 92 | C92: lots of stuff 92 | D92: lots of stuff 92
A93: lots of stuff 93 | B93: lots of stuff 93 | C93: lots of stuff 93 | D93: lots of stuff 93
A94: lots of stuff 94 | B94: lots of stuff 94 | C94: lots of stuff 94 | D94: lots of stuff 94
A95: lots of stuff 95 | B95: lots of stuff 95 | C95: lots of stuff 95 | D95: lots of stuff 95
A96: lots of stuff 96 | B96: lots of stuff 96 | C96: lots of stuff 96 | D96: lots of stuff 96
A97: lots of stuff 97 | B97: lots of stuff 97 | C97: lots of stuff 97 | D97: lots of stuff 97
A98: lots of stuff 98 | B98: lots of stuff 98 | C98: lots of stuff 98 | D98: lots of stuff 98
A99: lots of stuff 99 | B99: lots of stuff 99 | C99: lots of stuff 99 | D99: lots of stuff 99
A100: lots of stuff 100 | B100: lots of stuff 100 | C100: lots of stuff 100 | D100: lots of stuff 100
A101: lots of stuff 101 | B101: lots of stuff 101 | C101: lots of stuff 101 | D101: lots of stuff 101
A102: lots of stuff 102 | B102: lots of stuff 102 | C102: lots of stuff 102 | D102: lots of stuff 102
A103: lots of stuff 103 | B103: lots of stuff 103 | C103: lots of stuff 103 | D103: lots of stuff 103
A104: lots of stuff 104 | B104: lots of stuff 104 | C104: lots of stuff 104 | D104: lots of stuff 104
A105: lots of stuff 105 | B105: lots of stuff 105 | C105: lots of stuff 105 | D105: lots of stuff 105
A106: lots of stuff 106 | B106: lots of stuff 106 | C106: lots of stuff 106 | D106: lots of stuff 106
A107: lots of stuff 107 | B107: lots of stuff 107 | C107: lots of stuff 107 | D107: lots of stuff 107
A108: lots of stuff 108 | B108: lots of stuff 108 | C108: lots of stuff 108 | D108: lots of stuff 108
A109: lots of stuff 109 | B109: lots of stuff 109 | C109: lots of stuff 109 | D109: lots of stuff 109
A110: lots of stuff 110 | B110: lots of stuff 110 | C110: lots of stuff 110 | D110: lots of stuff 110
A111: lots of stuff 111 | B111: lots of stuff 111 | C111: lots of stuff 111 | D111: lots of stuff 111
A112: lots of stuff 112 | B112: lots of stuff 112 | C112: lots of stuff 112 | D112: lots of stuff 112
A113: lots of stuff 113 | B113: lots of stuff 113 | C113: lots of stuff 113 | D113: lots of stuff 113
A114: lots of stuff 114 | B114: lots of stuff 114 | C114: lots of stuff 114 | D114: lots of stuff 114
A115: lots of stuff 115 | B115: lots of stuff 115 | C115: lots of stuff 115 | D115: lots of stuff 115
A116: lots of stuff 116 | B116: lots of stuff 116 | C116: lots of stuff 116 | D116: lots of stuff 116
A117: lots of stuff 117 | B117: lots of stuff 117 | C117: lots of stuff 117 | D117: lots of stuff 117
A118: lots of stuff 118 | B118: lots of stuff 118 | C118: lots of stuff 118 | D118: lots of stuff 118
A119: lots of stuff 119 | B119: lots of stuff 119 | C119: lots of stuff 119 | D119: lots of stuff 119
A120: lots of stuff 120 | B120: lots of stuff 120 | C120: lots of stuff 120 | D120: lots of stuff 120
A121: lots of stuff 121 | B121: lots of stuff 121 | C121: lots of stuff 121 | D121: lots of stuff 121
A122: lots of stuff 122 | B122: lots of stuff 122 | C122: lots of stuff 122 | D122: lots of stuff 122
A123: lots of stuff 123 | B123: lots of stuff 123 | C123: lots of stuff 123 | D123: lots of stuff 123
A124: lots of stuff 124 | B124: lots of stuff 124 | C124: lots of stuff 124 | D124: lots of stuff 124
A125: lots of stuff 125 | B125: lots of stuff 125 | C125: lots of stuff 125 | D125: lots of stuff 125
A126: lots of stuff 126 | B126: lots of stuff 126 | C126: lots of stuff 126 | D126: lots of stuff 126
A127: lots of stuff 127 | B127: lots of stuff 127 | C127: lots of stuff 127 | D127: lots of stuff 127
A128: lots of stuff 128 | B128: lots of stuff 128 | C128: lots of stuff 128 | D128: lots of stuff 128
A129: lots of stuff 129 | B129: lots of stuff 129 | C129: lots of stuff 129 | D129: lots of stuff 129
A130: lots of stuff 130 | B130: lots of stuff 130 | C130: lots of stuff 130 | D130: lots of stuff 130
A131: lots of stuff 131 | B131: lots of stuff 131 | C131: lots of stuff 131 | D131: lots of stuff 131
A132: lots of stuff 132 | B132: lots of stuff 132 | C132: lots of stuff 132 | D132: lots of stuff 132
A133: lots of stuff 133 | B133: lots of stuff 133 | C133: lots of stuff 133 | D133: lots of stuff 133
A134: lots of stuff 134 | B134: lots of stuff 134 | C134: lots of stuff 134 | D134: lots of stuff 134
A135: lots of stuff 135 | B135: lots of stuff 135 | C135: lots of stuff 135 | D135: lots of stuff 135
A136: lots of stuff 136 | B136: lots of stuff 136 | C136: lots of stuff 136 | D136: lots of stuff 136
A137: lots of stuff 137 | B137: lots of stuff 137 | C137: lots of stuff 137 | D137: lots of stuff 137
A138: lots of stuff 138 | B138: lots of stuff 138 | C138: lots of stuff 138 | D138: lots of stuff 138
A139: lots of stuff 139 | B139: lots of stuff 139 | C139: lots of stuff 139 | D139: lots of stuff 139
A140: lots of stuff 140 | B140: lots of stuff 140 | C140: lots of stuff 140 | D140: lots of stuff 140
A141: lots of stuff 141 | B141: lots of stuff 141 | C141: lots of stuff 141 | D141: lots of stuff 141
A142: lots of stuff 142 | B142: lots of stuff 142 | C142: lots of stuff 142 | D142: lots of stuff 142
A143: lots of stuff 143 | B143: lots of stuff 143 | C143: lots of stuff 143 | D143: lots of stuff 143
A144: lots of stuff 144 | B144: lots of stuff 144 | C144: lots of stuff 144 | D144: lots of stuff 144
A145: lots of stuff 145 | B145: lots of stuff 145 | C145: lots of stuff 145 | D145: lots of stuff 145
A146: lots of stuff 146 | B146: lots of stuff 146 | C146: lots of stuff 146 | D146: lots of stuff 146
A147: lots of stuff 147 | B147: lots of stuff 147 | C147: lots of stuff 147 | D147: lots of stuff 147
A148: lots of stuff 148 | B148: lots of stuff 148 | C148: lots of stuff 148 | D148: lots of stuff 148
A149: lots of stuff 149 | B149: lots of stuff 149 | C149: lots of stuff 149 | D149: lots of stuff 149
A150: lots of stuff 150 | B150: lots of stuff 150 | C150: lots of stuff 150 | D150: lots of stuff 150
A151: lots of stuff 151 | B151: lots of stuff 151 | C151: lots of stuff 151 | D151: lots of stuff 151
A152: lots of stuff 152 | B152: lots of stuff 152 | C152: lots of stuff 152 | D152: lots of stuff 152
A153: lots of stuff 153 | B153: lots of stuff 153 | C153: lots of stuff 153 | D153: lots of stuff 153
A154: lots of stuff 154 | B154: lots of stuff 154 | C154: lots of stuff 154 | D154: lots of stuff 154
A155: lots of stuff 155 | B155: lots of stuff 155 | C155: lots of stuff 155 | D155: lots of stuff 155
A156: lots of stuff 156 | B156: lots of stuff 156 | C156: lots of stuff 156 | D156: lots of stuff 156
A157: lots of stuff 157 | B157: lots of stuff 157 | C157: lots of stuff 157 | D157: lots of stuff 157
A158: lots of stuff 158 | B158: lots of stuff 158 | C158: lots of stuff 158 | D158: lots of stuff 158
A159: lots of stuff 159 | B159: lots of stuff 159 | C159: lots of stuff 159 | D159: lots of stuff 159
A160: lots of stuff 160 | B160: lots of stuff 160 | C160: lots of stuff 160 | D160: lots of stuff 160
A161: lots of stuff 161 | B161: lots of stuff 161 | C161: lots of stuff 161 | D161: lots of stuff 161
A162: lots of stuff 162 | B162: lots of stuff 162 | C162: lots of stuff 162 | D162: lots of stuff 162
A163: lots of stuff 163 | B163: lots of stuff 163 | C163: lots of stuff 163 | D163: lots of stuff 163
A164: lots of stuff 164 | B164: lots of stuff 164 | C164: lots of stuff 164 | D164: lots of stuff 164
A165: lots of stuff 165 | B165: lots of stuff 165 | C165: lots of stuff 165 | D165: lots of stuff 165
A166: lots of stuff 166 | B166: lots of stuff 166 | C166: lots of stuff 166 | D166: lots of stuff 166
A167: lots of stuff 167 | B167: lots of stuff 167 | C167: lots of stuff 167 | D167: lots of stuff 167
A168: lots of stuff 168 | B168: lots of stuff 168 | C168: lots of stuff 168 | D168: lots of stuff 168
A169: lots of stuff 169 | B169: lots of stuff 169 | C169: lots of stuff 169 | D169: lots of stuff 169
A170: lots of stuff 170 | B170: lots of stuff 170 | C170: lots of stuff 170 | D170: lots of stuff 170
A171: lots of stuff 171 | B171: lots of stuff 171 | C171: lots of stuff 171 | D171: lots of stuff 171
A172: lots of stuff 172 | B172: lots of stuff 172 | C172: lots of stuff 172 | D172: lots of stuff 172
A173: lots of stuff 173 | B173: lots of stuff 173 | C173: lots of stuff 173 | D173: lots of stuff 173
A174: lots of stuff 174 | B174: lots of stuff 174 | C174: lots of stuff 174 | D174: lots of stuff 174
A175: lots of stuff 175 | B175: lots of stuff 175 | C175: lots of stuff 175 | D175: lots of stuff 175
A176: lots of stuff 176 | B176: lots of stuff 176 | C176: lots of stuff 176 | D176: lots of stuff 176
A177: lots of stuff 177 | B177: lots of stuff 177 | C177: lots of stuff 177 | D177: lots of stuff 177
A178: lots of stuff 178 | B178: lots of stuff 178 | C178: lots of stuff 178 | D178: lots of stuff 178
A179: lots of stuff 179 | B179: lots of stuff 179 | C179: lots of stuff 179 | D179: lots of stuff 179
A180: lots of stuff 180 | B180: lots of stuff 180 | C180: lots of stuff 180 | D180: lots of stuff 180
A181: lots of stuff 181 | B181: lots of stuff 181 | C181: lots of stuff 181 | D181: lots of stuff 181
A182: lots of stuff 182 | B182: lots of stuff 182 | C182: lots of stuff 182 | D182: lots of stuff 182
A183: lots of stuff 183 | B183: lots of stuff 183 | C183: lots of stuff 183 | D183: lots of stuff 183
A184: lots of stuff 184 | B184: lots of stuff 184 | C184: lots of stuff 184 | D184: lots of stuff 184
A185: lots of stuff 185 | B185: lots of stuff 185 | C185: lots of stuff 185 | D185: lots of stuff 185
A186: lots of stuff 186 | B186: lots of stuff 186 | C186: lots of stuff 186 | D186: lots of stuff 186
A187: lots of stuff 187 | B187: lots of stuff 187 | C187: lots of stuff 187 | D187: lots of stuff 187
A188: lots of stuff 188 | B188: lots of stuff 188 | C188: lots of stuff 188 | D188: lots of stuff 188
A189: lots of stuff 189 | B189: lots of stuff 189 | C189: lots of stuff 189 | D189: lots of stuff 189
A190: lots of stuff 190 | B190: lots of stuff 190 | C190: lots of stuff 190 | D190: lots of stuff 190
A191: lots of stuff 191 | B191: lots of stuff 191 | C191: lots of stuff 191 | D191: lots of stuff 191
A192: lots of stuff 192 | B192: lots of stuff 192 | C192: lots of stuff 192 | D192: lots of stuff 192
A193: lots of stuff 193 | B193: lots of stuff 193 | C193: lots of stuff 193 | D193: lots of stuff 193
A194: lots of stuff 194 | B194: lots of stuff 194 | C194: lots of stuff 194 | D194: lots of stuff 194
A195: lots of stuff 195 | B195: lots of stuff 195 | C195: lots of stuff 195 | D195: lots of stuff 195
A196: lots of stuff 196 | B196: lots of stuff 196 | C196: lots of stuff 196 | D196: lots of stuff 196
A197: lots of stuff 197 | B197: lots of stuff 197 | C197: lots of stuff 197 | D197: lots of stuff 197
A198: lots of stuff 198 | B198: lots of stuff 198 | C198: lots of stuff 198 | D198: lots of stuff 198
A199: lots of stuff 199 | B199: lots of stuff 199 | C199: lots of stuff 199 | D199: lots of stuff 199
A200: lots of stuff 200 | B200: lots of stuff 200 | C200: lots of stuff 200 | D200: lots of stuff 200
... 650 more rows

Sheet History
A1: Rename to History | E1: You can go to RxCx in the Name box

Sheet Another Bob
A1: 3 | B1: 3
A2: 3 | B2: 3

Sheet Misc1
A1: Type 1e6 or 1e9 instead of 1000000 or 1000000000 | I1: =sum('*Bob*'!a1:B2)
G2: 10000000
I3: Shift/fill handle drag up to delete
A4: Format painter to turn this arrow | E4: into this arrow | I4: go to z
I6: Ctrl/period
I8: 581.3199684 | J8: 671.2857887 | K8: 715.9465513 | L8: 925.5412778 | M8: 542.8326175 | N8: 405.2594563 | O8: 752.8802412
I9: 186.8662162 | J9: 936.9984067 | K9: 641.3457631 | L9: 624.5503697 | M9: 722.6382181 | N9: 34.69149338 | O9: 950.0686093
I10: 406.0808172 | J10: 970.0289212 | K10: 361.2771633 | L10: 345.6101782 | M10: 971.0630984 | N10: 948.1776875 | O10: 25.61235162
E11: Registry | I11: 643.9270534 | J11: 551.4218165 | K11: 233.9910287 | L11: 397.7502599 | M11: 553.2458363 | N11: 802.9000493 | O11: 743.6387975
I12: 818.0471762 | J12: 165.8834242 | K12: 5.707004278 | L12: 932.1855857 | M12: 171.5162875 | N12: 419.8837015 | O12: 80.7900867
I13: 990.3784098 | J13: 598.5652215 | K13: 951.3434452 | L13: 60.50729678 | M13: 462.6251293 | N13: 859.2130211 | O13: 771.4704282
I14: 391.0033044 | J14: 159.3877383 | K14: 554.8652565 | L14: 150.9884845 | M14: 829.9528145 | N14: 344.6229143 | O14: 675.6343471
I15: 593.8466636 | J15: 49.68820452 | K15: 304.6195231 | L15: 274.1545546 | M15: 836.210879 | N15: 202.0800538 | O15: 889.1690016
I16: 242.2131079 | J16: 996.116861 | K16: 924.2434238 | L16: 944.1723587 | M16: 658.5190214 | N16: 806.0487367 | O16: 465.2567189
I17: 487.7236078 | J17: 731.5674974 | K17: 376.4280443 | L17: 539.3503619 | M17: 184.1793904 | N17: 173.1276412 | O17: 10.03731625
I18: 909.6890451 | J18: 945.5589324 | K18: 481.067374 | L18: 937.7878103 | M18: 519.5335674 | N18: 374.211225 | O18: 560.2483492
I19: 942.2100713 | J19: 394.8889894 | K19: 966.0403973 | L19: 525.3813259 | M19: 562.0641312 | N19: 848.3415305 | O19: 438.1452128
I20: 966.3205499 | J20: 468.6046917 | K20: 146.1977035 | L20: 638.1776781 | M20: 410.1342915 | N20: 734.8227491 | O20: 604.8658632
I21: 503.5763677 | J21: 216.3105474 | K21: 153.9547067 | L21: 461.0516989 | M21: 808.797216 | N21: 706.2950926 | O21: 662.7895099
I22: 900.6768071 | J22: 772.2304077 | K22: 321.3291125 | L22: 950.9216143 | M22: 748.6054342 | N22: 980.2341115 | O22: 384.0346095
I23: 788.4560565 | J23: 409.9560852 | K23: 397.880037 | L23: 521.8397091 | M23: 177.1510519 | N23: 761.2901651 | O23: 352.8419516
I24: 518.1401553 | J24: 491.1271362 | K24: 195.9407855 | L24: 679.6411717 | M24: 799.4959722 | N24: 869.7847768 | O24: 288.7559866 | U24: More Stuff | V24: More Stuff | W24: More Stuff | X24: More Stuff | Y24: More Stuff | Z24: More Stuff | AA24: More Stuff
I25: 279.1702602 | J25: 927.4525208 | K25: 447.4769586 | L25: 471.9959231 | M25: 426.1957264 | N25: 328.0995821 | O25: 980.2591781 | U25: More Stuff | V25: More Stuff | W25: More Stuff | X25: More Stuff | Y25: More Stuff | Z25: More Stuff | AA25: More Stuff
I26: 518.035927 | J26: 372.8259417 | K26: 940.2067544 | L26: 601.8068977 | M26: 839.7370343 | N26: 987.5923202 | O26: 673.1061065 | U26: More Stuff | V26: More Stuff | W26: More Stuff | X26: More Stuff | Y26: More Stuff | Z26: More Stuff | AA26: More Stuff
I27: 625.5147948 | J27: 411.0277155 | K27: 214.9576294 | L27: 881.732962 | M27: 471.6662651 | N27: 408.6666841 | O27: 26.91544498 | U27: More Stuff | V27: More Stuff | W27: More Stuff | X27: More Stuff | Y27: More Stuff | Z27: More Stuff | AA27: More Stuff
U28: More Stuff | V28: More Stuff | W28: More Stuff | X28: More Stuff | Y28: More Stuff | Z28: More Stuff | AA28: More Stuff
U29: More Stuff | V29: More Stuff | W29: More Stuff | X29: More Stuff | Y29: More Stuff | Z29: More Stuff | AA29: More Stuff
U30: More Stuff | V30: More Stuff | W30: More Stuff | X30: More Stuff | Y30: More Stuff | Z30: More Stuff | AA30: More Stuff
U31: More Stuff | V31: More Stuff | W31: More Stuff | X31: More Stuff | Y31: More Stuff | Z31: More Stuff | AA31: More Stuff
U32: More Stuff | V32: More Stuff | W32: More Stuff | X32: More Stuff | Y32: More Stuff | Z32: More Stuff | AA32: More Stuff
U33: More Stuff | V33: More Stuff | W33: More Stuff | X33: More Stuff | Y33: More Stuff | Z33: More Stuff | AA33: More Stuff
U34: More Stuff | V34: More Stuff | W34: More Stuff | X34: More Stuff | Y34: More Stuff | Z34: More Stuff | AA34: More Stuff
U35: More Stuff | V35: More Stuff | W35: More Stuff | X35: More Stuff | Y35: More Stuff | Z35: More Stuff | AA35: More Stuff
U36: More Stuff | V36: More Stuff | W36: More Stuff | X36: More Stuff | Y36: More Stuff | Z36: More Stuff | AA36: More Stuff
U37: More Stuff | V37: More Stuff | W37: More Stuff | X37: More Stuff | Y37: More Stuff | Z37: More Stuff | AA37: More Stuff
U38: More Stuff | V38: More Stuff | W38: More Stuff | X38: More Stuff | Y38: More Stuff | Z38: More Stuff | AA38: More Stuff
U39: More Stuff | V39: More Stuff | W39: More Stuff | X39: More Stuff | Y39: More Stuff | Z39: More Stuff | AA39: More Stuff
U40: More Stuff | V40: More Stuff | W40: More Stuff | X40: More Stuff | Y40: More Stuff | Z40: More Stuff | AA40: More Stuff
U41: More Stuff | V41: More Stuff | W41: More Stuff | X41: More Stuff | Y41: More Stuff | Z41: More Stuff | AA41: More Stuff
U42: More Stuff | V42: More Stuff | W42: More Stuff | X42: More Stuff | Y42: More Stuff | Z42: More Stuff | AA42: More Stuff
U43: More Stuff | V43: More Stuff | W43: More Stuff | X43: More Stuff | Y43: More Stuff | Z43: More Stuff | AA43: More Stuff
U44: More Stuff | V44: More Stuff | W44: More Stuff | X44: More Stuff | Y44: More Stuff | Z44: More Stuff | AA44: More Stuff
U45: More Stuff | V45: More Stuff | W45: More Stuff | X45: More Stuff | Y45: More Stuff | Z45: More Stuff | AA45: More Stuff

Sheet Find Backwards
A1: Department
A2: Acctg
A3: Acctg
A4: Acctg
A5: Acctg
A6: Acctg
A7: Acctg
A8: Acctg
A9: Acctg
A10: Acctg
A11: Acctg
A12: Acctg
A13: Acctg
A14: Acctg
A15: Acctg
A16: Acctg
A17: Acctg
A18: Acctg
A19: Acctg
A20: Acctg
A21: Acctg
A22: Acctg
A23: Acctg
A24: Acctg
A25: Acctg
A26: Acctg
A27: Acctg
A28: Acctg
A29: Acctg
A30: Acctg
A31: Acctg
A32: Acctg
A33: Acctg
A34: Acctg
A35: Acctg
A36: Acctg
A37: Acctg
A38: Acctg
A39: Acctg
A40: Acctg
A41: Acctg
A42: Acctg
A43: Acctg
A44: Acctg
A45: Acctg
A46: Acctg
A47: Acctg
A48: Acctg
A49: Acctg
A50: Acctg
A51: Acctg
A52: Acctg
A53: Acctg
A54: Acctg
A55: Acctg
A56: Acctg
A57: Acctg
A58: Acctg
A59: Acctg
A60: Acctg
A61: Acctg
A62: Acctg
A63: Acctg
A64: Acctg
A65: Acctg
A66: Acctg
A67: Acctg
A68: Acctg
A69: Acctg
A70: Acctg
A71: Acctg
A72: Acctg
A73: Acctg
A74: Acctg
A75: Acctg
A76: Acctg
A77: Acctg
A78: Acctg
A79: Acctg
A80: Acctg
A81: Acctg
A82: Acctg
A83: Acctg
A84: Acctg
A85: Acctg
A86: Acctg
A87: Acctg
A88: Acctg
A89: Acctg
A90: Acctg
A91: Acctg
A92: Acctg
A93: Acctg
A94: Acctg
A95: Acctg
A96: Acctg
A97: Acctg
A98: Acctg
A99: Acctg
A100: Acctg
A101: Acctg
A102: Acctg
A103: Acctg
A104: Acctg
A105: Acctg
A106: Acctg
A107: Acctg
A108: Acctg
A109: Acctg
A110: Acctg
A111: Acctg
A112: Acctg
A113: Acctg
A114: Acctg
A115: Acctg
A116: Acctg
A117: Acctg
A118: Acctg
A119: Acctg
A120: Acctg
A121: Acctg
A122: Acctg
A123: Acctg
A124: Acctg
A125: Acctg
A126: Acctg
A127: Acctg
A128: Acctg
A129: Acctg
A130: Acctg
A131: Acctg
A132: Acctg
A133: Acctg
A134: Acctg
A135: Acctg
A136: Acctg
A137: Acctg
A138: Acctg
A139: Acctg
A140: Acctg
A141: Acctg
A142: Acctg
A143: Acctg
A144: Acctg
A145: Acctg
A146: Acctg
A147: Acctg
A148: Acctg
A149: Acctg
A150: Acctg
A151: Acctg
A152: Acctg
A153: Acctg
A154: Acctg
A155: Acctg
A156: Acctg
A157: Acctg
A158: Acctg
A159: Acctg
A160: Acctg
A161: Acctg
A162: Acctg
A163: Acctg
A164: Acctg
A165: Acctg
A166: Acctg
A167: Acctg
A168: Acctg
A169: Acctg
A170: Acctg
A171: Acctg
A172: Acctg
A173: Acctg
A174: Acctg
A175: Acctg
A176: Acctg
A177: Acctg
A178: Acctg
A179: Acctg
A180: Acctg
A181: Acctg
A182: Acctg
A183: Acctg
A184: Acctg
A185: Acctg
A186: Acctg
A187: Acctg
A188: Acctg
A189: Acctg
A190: Acctg
A191: Acctg
A192: Acctg
A193: Acctg
A194: Acctg
A195: Acctg
A196: Acctg
A197: Acctg
A198: Acctg
A199: Acctg
A200: Acctg
... 1303 more rows

Sheet Merge
G1: How did I merge each row A:E?

Sheet Where are Row#s

Sheet Match Wildcard
A1: Dept | B1: Amt | C1: % of Total
A2: Dept1 | B2: 872 | C2: =B2/INDEX(B:B,MATCH("*Total",OFFSET(A2,0,0,1000,1),0)+ROW()-1) -> 0.0905974026 | E2: =B2/INDEX(B:B,MATCH("*Total",OFFSET(A2,0,0,1000,1),0)+ROW()-1) -> 0.0905974026
A3: Dept1 | B3: 252 | C3: 0.02618181818 | E3: =B3/INDEX(B:B,MATCH("*Total",OFFSET(A3,0,0,1000,1),0)+ROW()-1) -> 0.02618181818
A4: Dept1 | B4: 304 | C4: 0.03158441558 | E4: =B4/INDEX(B:B,MATCH("*Total",OFFSET(A4,0,0,1000,1),0)+ROW()-1) -> 0.03158441558
A5: Dept1 | B5: 900 | C5: 0.09350649351 | E5: =B5/INDEX(B:B,MATCH("*Total",OFFSET(A5,0,0,1000,1),0)+ROW()-1) -> 0.09350649351
A6: Dept1 | B6: 444 | C6: 0.04612987013 | E6: =B6/INDEX(B:B,MATCH("*Total",OFFSET(A6,0,0,1000,1),0)+ROW()-1) -> 0.04612987013
A7: Dept1 | B7: 993 | C7: 0.1031688312 | E7: =B7/INDEX(B:B,MATCH("*Total",OFFSET(A7,0,0,1000,1),0)+ROW()-1) -> 0.1031688312
A8: Dept1 | B8: 70 | C8: 0.007272727273 | E8: =B8/INDEX(B:B,MATCH("*Total",OFFSET(A8,0,0,1000,1),0)+ROW()-1) -> 0.007272727273
A9: Dept1 | B9: 430 | C9: 0.04467532468 | E9: =B9/INDEX(B:B,MATCH("*Total",OFFSET(A9,0,0,1000,1),0)+ROW()-1) -> 0.04467532468
A10: Dept1 | B10: 212 | C10: 0.02202597403 | E10: =B10/INDEX(B:B,MATCH("*Total",OFFSET(A10,0,0,1000,1),0)+ROW()-1) -> 0.02202597403
A11: Dept1 | B11: 698 | C11: 0.07251948052 | E11: =B11/INDEX(B:B,MATCH("*Total",OFFSET(A11,0,0,1000,1),0)+ROW()-1) -> 0.07251948052
A12: Dept1 | B12: 871 | C12: 0.09049350649 | E12: =B12/INDEX(B:B,MATCH("*Total",OFFSET(A12,0,0,1000,1),0)+ROW()-1) -> 0.09049350649
A13: Dept1 | B13: 177 | C13: 0.01838961039 | E13: =B13/INDEX(B:B,MATCH("*Total",OFFSET(A13,0,0,1000,1),0)+ROW()-1) -> 0.01838961039
A14: Dept1 | B14: 160 | C14: 0.01662337662 | E14: =B14/INDEX(B:B,MATCH("*Total",OFFSET(A14,0,0,1000,1),0)+ROW()-1) -> 0.01662337662
A15: Dept1 | B15: 606 | C15: 0.06296103896 | E15: =B15/INDEX(B:B,MATCH("*Total",OFFSET(A15,0,0,1000,1),0)+ROW()-1) -> 0.06296103896
A16: Dept1 | B16: 589 | C16: 0.06119480519 | E16: =B16/INDEX(B:B,MATCH("*Total",OFFSET(A16,0,0,1000,1),0)+ROW()-1) -> 0.06119480519
A17: Dept1 | B17: 869 | C17: 0.09028571429 | E17: =B17/INDEX(B:B,MATCH("*Total",OFFSET(A17,0,0,1000,1),0)+ROW()-1) -> 0.09028571429
A18: Dept1 | B18: 384 | C18: 0.0398961039 | E18: =B18/INDEX(B:B,MATCH("*Total",OFFSET(A18,0,0,1000,1),0)+ROW()-1) -> 0.0398961039
A19: Dept1 | B19: 794 | C19: 0.08249350649 | E19: =B19/INDEX(B:B,MATCH("*Total",OFFSET(A19,0,0,1000,1),0)+ROW()-1) -> 0.08249350649
A20: Dept1 Total | B20: 9625 | C20: 1 | E20: =B20/INDEX(B:B,MATCH("*Total",OFFSET(A20,0,0,1000,1),0)+ROW()-1) -> 1
A21: Dept2 | B21: 340 | C21: 0.1047120419 | E21: =B21/INDEX(B:B,MATCH("*Total",OFFSET(A21,0,0,1000,1),0)+ROW()-1) -> 0.1047120419
A22: Dept2 | B22: 762 | C22: 0.2346781645 | E22: =B22/INDEX(B:B,MATCH("*Total",OFFSET(A22,0,0,1000,1),0)+ROW()-1) -> 0.2346781645
A23: Dept2 | B23: 426 | C23: 0.1311980289 | E23: =B23/INDEX(B:B,MATCH("*Total",OFFSET(A23,0,0,1000,1),0)+ROW()-1) -> 0.1311980289
A24: Dept2 | B24: 367 | C24: 0.1130274099 | E24: =B24/INDEX(B:B,MATCH("*Total",OFFSET(A24,0,0,1000,1),0)+ROW()-1) -> 0.1130274099
A25: Dept2 | B25: 207 | C25: 0.06375115491 | E25: =B25/INDEX(B:B,MATCH("*Total",OFFSET(A25,0,0,1000,1),0)+ROW()-1) -> 0.06375115491
A26: Dept2 | B26: 122 | C26: 0.03757314444 | E26: =B26/INDEX(B:B,MATCH("*Total",OFFSET(A26,0,0,1000,1),0)+ROW()-1) -> 0.03757314444
A27: Dept2 | B27: 564 | C27: 0.1736987989 | E27: =B27/INDEX(B:B,MATCH("*Total",OFFSET(A27,0,0,1000,1),0)+ROW()-1) -> 0.1736987989
A28: Dept2 | B28: 459 | C28: 0.1413612565 | E28: =B28/INDEX(B:B,MATCH("*Total",OFFSET(A28,0,0,1000,1),0)+ROW()-1) -> 0.1413612565
A29: Dept2 Total | B29: 3247 | C29: 1 | E29: =B29/INDEX(B:B,MATCH("*Total",OFFSET(A29,0,0,1000,1),0)+ROW()-1) -> 1
A30: Dept3 | B30: 671 | C30: 0.04395388445 | E30: =B30/INDEX(B:B,MATCH("*Total",OFFSET(A30,0,0,1000,1),0)+ROW()-1) -> 0.04395388445
A31: Dept3 | B31: 54 | C31: 0.00353727237 | E31: =B31/INDEX(B:B,MATCH("*Total",OFFSET(A31,0,0,1000,1),0)+ROW()-1) -> 0.00353727237
A32: Dept3 | B32: 546 | C32: 0.03576575396 | E32: =B32/INDEX(B:B,MATCH("*Total",OFFSET(A32,0,0,1000,1),0)+ROW()-1) -> 0.03576575396
A33: Dept3 | B33: 192 | C33: 0.01257696843 | E33: =B33/INDEX(B:B,MATCH("*Total",OFFSET(A33,0,0,1000,1),0)+ROW()-1) -> 0.01257696843
A34: Dept3 | B34: 467 | C34: =B34/INDEX(B:B,MATCH("*Total",OFFSET(A34,0,0,1000,1),0)+ROW()-1) -> 0.0305908555 | E34: =B34/INDEX(B:B,MATCH("*Total",OFFSET(A34,0,0,1000,1),0)+ROW()-1) -> 0.0305908555
A35: Dept3 | B35: 718 | C35: 0.04703262151 | E35: =B35/INDEX(B:B,MATCH("*Total",OFFSET(A35,0,0,1000,1),0)+ROW()-1) -> 0.04703262151
A36: Dept3 | B36: 706 | C36: 0.04624656099 | E36: =B36/INDEX(B:B,MATCH("*Total",OFFSET(A36,0,0,1000,1),0)+ROW()-1) -> 0.04624656099
A37: Dept3 | B37: 249 | C37: 0.01631075593 | E37: =B37/INDEX(B:B,MATCH("*Total",OFFSET(A37,0,0,1000,1),0)+ROW()-1) -> 0.01631075593
A38: Dept3 | B38: 193 | C38: 0.01264247347 | E38: =B38/INDEX(B:B,MATCH("*Total",OFFSET(A38,0,0,1000,1),0)+ROW()-1) -> 0.01264247347
A39: Dept3 | B39: 763 | C39: 0.04998034849 | E39: =B39/INDEX(B:B,MATCH("*Total",OFFSET(A39,0,0,1000,1),0)+ROW()-1) -> 0.04998034849
A40: Dept3 | B40: 139 | C40: 0.0091052011 | E40: =B40/INDEX(B:B,MATCH("*Total",OFFSET(A40,0,0,1000,1),0)+ROW()-1) -> 0.0091052011
A41: Dept3 | B41: 486 | C41: 0.03183545133 | E41: =B41/INDEX(B:B,MATCH("*Total",OFFSET(A41,0,0,1000,1),0)+ROW()-1) -> 0.03183545133
A42: Dept3 | B42: 319 | C42: 0.020896109 | E42: =B42/INDEX(B:B,MATCH("*Total",OFFSET(A42,0,0,1000,1),0)+ROW()-1) -> 0.020896109
A43: Dept3 | B43: 646 | C43: 0.04231625835 | E43: =B43/INDEX(B:B,MATCH("*Total",OFFSET(A43,0,0,1000,1),0)+ROW()-1) -> 0.04231625835
A44: Dept3 | B44: 140 | C44: 0.009170706144 | E44: =B44/INDEX(B:B,MATCH("*Total",OFFSET(A44,0,0,1000,1),0)+ROW()-1) -> 0.009170706144
A45: Dept3 | B45: 115 | C45: 0.007533080047 | E45: =B45/INDEX(B:B,MATCH("*Total",OFFSET(A45,0,0,1000,1),0)+ROW()-1) -> 0.007533080047
A46: Dept3 | B46: 756 | C46: 0.04952181318 | E46: =B46/INDEX(B:B,MATCH("*Total",OFFSET(A46,0,0,1000,1),0)+ROW()-1) -> 0.04952181318
A47: Dept3 | B47: 838 | C47: 0.05489322678 | E47: =B47/INDEX(B:B,MATCH("*Total",OFFSET(A47,0,0,1000,1),0)+ROW()-1) -> 0.05489322678
A48: Dept3 | B48: 886 | C48: 0.05803746889 | E48: =B48/INDEX(B:B,MATCH("*Total",OFFSET(A48,0,0,1000,1),0)+ROW()-1) -> 0.05803746889
A49: Dept3 | B49: 554 | C49: 0.03628979431 | E49: =B49/INDEX(B:B,MATCH("*Total",OFFSET(A49,0,0,1000,1),0)+ROW()-1) -> 0.03628979431
A50: Dept3 | B50: 130 | C50: 0.008515655705 | E50: =B50/INDEX(B:B,MATCH("*Total",OFFSET(A50,0,0,1000,1),0)+ROW()-1) -> 0.008515655705
A51: Dept3 | B51: 583 | C51: 0.03818944059 | E51: =B51/INDEX(B:B,MATCH("*Total",OFFSET(A51,0,0,1000,1),0)+ROW()-1) -> 0.03818944059
A52: Dept3 | B52: 696 | C52: 0.04559151055 | E52: =B52/INDEX(B:B,MATCH("*Total",OFFSET(A52,0,0,1000,1),0)+ROW()-1) -> 0.04559151055
A53: Dept3 | B53: 664 | C53: 0.04349534914 | E53: =B53/INDEX(B:B,MATCH("*Total",OFFSET(A53,0,0,1000,1),0)+ROW()-1) -> 0.04349534914
A54: Dept3 | B54: 17 | C54: 0.001113585746 | E54: =B54/INDEX(B:B,MATCH("*Total",OFFSET(A54,0,0,1000,1),0)+ROW()-1) -> 0.001113585746
A55: Dept3 | B55: 544 | C55: 0.03563474388 | E55: =B55/INDEX(B:B,MATCH("*Total",OFFSET(A55,0,0,1000,1),0)+ROW()-1) -> 0.03563474388
A56: Dept3 | B56: 756 | C56: 0.04952181318 | E56: =B56/INDEX(B:B,MATCH("*Total",OFFSET(A56,0,0,1000,1),0)+ROW()-1) -> 0.04952181318
A57: Dept3 | B57: 984 | C57: 0.06445696319 | E57: =B57/INDEX(B:B,MATCH("*Total",OFFSET(A57,0,0,1000,1),0)+ROW()-1) -> 0.06445696319
A58: Dept3 | B58: 759 | C58: 0.04971832831 | E58: =B58/INDEX(B:B,MATCH("*Total",OFFSET(A58,0,0,1000,1),0)+ROW()-1) -> 0.04971832831
A59: Dept3 | B59: 150 | C59: 0.009825756583 | E59: =B59/INDEX(B:B,MATCH("*Total",OFFSET(A59,0,0,1000,1),0)+ROW()-1) -> 0.009825756583
A60: Dept3 | B60: 310 | C60: 0.02030656361 | E60: =B60/INDEX(B:B,MATCH("*Total",OFFSET(A60,0,0,1000,1),0)+ROW()-1) -> 0.02030656361
A61: Dept3 | B61: 235 | C61: 0.01539368531 | E61: =B61/INDEX(B:B,MATCH("*Total",OFFSET(A61,0,0,1000,1),0)+ROW()-1) -> 0.01539368531
A62: Dept3 Total | B62: 15266 | C62: 1 | E62: =B62/INDEX(B:B,MATCH("*Total",OFFSET(A62,0,0,1000,1),0)+ROW()-1) -> 1
A63: Dept4 | B63: 100 | C63: 0.2 | E63: =B63/INDEX(B:B,MATCH("*Total",OFFSET(A63,0,0,1000,1),0)+ROW()-1) -> 0.2
A64: Dept4 | B64: 150 | C64: 0.3 | E64: =B64/INDEX(B:B,MATCH("*Total",OFFSET(A64,0,0,1000,1),0)+ROW()-1) -> 0.3
A65: Dept4 | B65: 250 | C65: 0.5 | E65: =B65/INDEX(B:B,MATCH("*Total",OFFSET(A65,0,0,1000,1),0)+ROW()-1) -> 0.5
A66: Dept4 Total | B66: =SUM(B63:B65) -> 500 | C66: =B66/INDEX(B:B,MATCH("*Total",OFFSET(A66,0,0,1000,1),0)+ROW()-1) -> 1 | E66: =B66/INDEX(B:B,MATCH("*Total",OFFSET(A66,0,0,1000,1),0)+ROW()-1) -> 1
A67: Dept 5 | B67: 885 | C67: 0.06726968683 | E67: =B67/INDEX(B:B,MATCH("*Total",OFFSET(A67,0,0,1000,1),0)+ROW()-1) -> 0.06726968683
A68: Dept 5 | B68: 926 | C68: 0.0703861356 | E68: =B68/INDEX(B:B,MATCH("*Total",OFFSET(A68,0,0,1000,1),0)+ROW()-1) -> 0.0703861356
A69: Dept 5 | B69: 687 | C69: 0.05221951961 | E69: =B69/INDEX(B:B,MATCH("*Total",OFFSET(A69,0,0,1000,1),0)+ROW()-1) -> 0.05221951961
A70: Dept 5 | B70: 885 | C70: 0.06726968683 | E70: =B70/INDEX(B:B,MATCH("*Total",OFFSET(A70,0,0,1000,1),0)+ROW()-1) -> 0.06726968683
A71: Dept 5 | B71: 90 | C71: 0.006840985102 | E71: =B71/INDEX(B:B,MATCH("*Total",OFFSET(A71,0,0,1000,1),0)+ROW()-1) -> 0.006840985102
A72: Dept 5 | B72: 667 | C72: 0.0506993007 | E72: =B72/INDEX(B:B,MATCH("*Total",OFFSET(A72,0,0,1000,1),0)+ROW()-1) -> 0.0506993007
A73: Dept 5 | B73: 38 | C73: 0.002888415932 | E73: =B73/INDEX(B:B,MATCH("*Total",OFFSET(A73,0,0,1000,1),0)+ROW()-1) -> 0.002888415932
A74: Dept 5 | B74: 586 | C74: 0.04454241411 | E74: =B74/INDEX(B:B,MATCH("*Total",OFFSET(A74,0,0,1000,1),0)+ROW()-1) -> 0.04454241411
A75: Dept 5 | B75: 923 | C75: 0.07015810277 | E75: =B75/INDEX(B:B,MATCH("*Total",OFFSET(A75,0,0,1000,1),0)+ROW()-1) -> 0.07015810277
A76: Dept 5 | B76: 122 | C76: 0.00927333536 | E76: =B76/INDEX(B:B,MATCH("*Total",OFFSET(A76,0,0,1000,1),0)+ROW()-1) -> 0.00927333536
A77: Dept 5 | B77: 897 | C77: 0.06818181818 | E77: =B77/INDEX(B:B,MATCH("*Total",OFFSET(A77,0,0,1000,1),0)+ROW()-1) -> 0.06818181818
A78: Dept 5 | B78: 681 | C78: 0.05176345394 | E78: =B78/INDEX(B:B,MATCH("*Total",OFFSET(A78,0,0,1000,1),0)+ROW()-1) -> 0.05176345394
A79: Dept 5 | B79: 224 | C79: 0.01702645181 | E79: =B79/INDEX(B:B,MATCH("*Total",OFFSET(A79,0,0,1000,1),0)+ROW()-1) -> 0.01702645181
A80: Dept 5 | B80: 747 | C80: 0.05678017635 | E80: =B80/INDEX(B:B,MATCH("*Total",OFFSET(A80,0,0,1000,1),0)+ROW()-1) -> 0.05678017635
A81: Dept 5 | B81: 39 | C81: 0.002964426877 | E81: =B81/INDEX(B:B,MATCH("*Total",OFFSET(A81,0,0,1000,1),0)+ROW()-1) -> 0.002964426877
A82: Dept 5 | B82: 761 | C82: 0.05784432958 | E82: =B82/INDEX(B:B,MATCH("*Total",OFFSET(A82,0,0,1000,1),0)+ROW()-1) -> 0.05784432958
A83: Dept 5 | B83: 785 | C83: 0.05966859228 | E83: =B83/INDEX(B:B,MATCH("*Total",OFFSET(A83,0,0,1000,1),0)+ROW()-1) -> 0.05966859228
A84: Dept 5 | B84: 318 | C84: 0.02417148069 | E84: =B84/INDEX(B:B,MATCH("*Total",OFFSET(A84,0,0,1000,1),0)+ROW()-1) -> 0.02417148069
A85: Dept 5 | B85: 829 | C85: 0.06301307388 | E85: =B85/INDEX(B:B,MATCH("*Total",OFFSET(A85,0,0,1000,1),0)+ROW()-1) -> 0.06301307388
A86: Dept 5 | B86: 182 | C86: 0.01383399209 | E86: =B86/INDEX(B:B,MATCH("*Total",OFFSET(A86,0,0,1000,1),0)+ROW()-1) -> 0.01383399209
A87: Dept 5 | B87: 400 | C87: 0.03040437823 | E87: =B87/INDEX(B:B,MATCH("*Total",OFFSET(A87,0,0,1000,1),0)+ROW()-1) -> 0.03040437823
A88: Dept5 Total | B88: 13156 | C88: 1 | E88: =B88/INDEX(B:B,MATCH("*Total",OFFSET(A88,0,0,1000,1),0)+ROW()-1) -> 1

Sheet Cut Copy InsertPaste
B4: 1 | C4: 45 | D4: 2020-01-01 | E4: 63 | F4: 72
B5: 2 | C5: 50 | D5: 2020-02-01 | E5: 70 | F5: 80
B6: 3 | C6: 55 | D6: 2020-03-01 | E6: 77 | F6: 88
B7: 4 | C7: 60 | D7: 2020-04-01 | E7: 84 | F7: 96
B8: 5 | C8: 65 | D8: 2020-05-01 | E8: 91 | F8: 104
B9: 6 | C9: 70 | D9: 2020-06-01 | E9: 98 | F9: 112
B10: 7 | C10: 75 | D10: 2020-07-01 | E10: 105 | F10: 120
B11: 8 | C11: 80 | D11: 2020-08-01 | E11: 112 | F11: 128
B12: 9 | C12: 85 | D12: 2020-09-01 | E12: 119 | F12: 136
B13: 10 | C13: 90 | D13: 2020-10-01 | E13: 126 | F13: 144
B14: 11 | C14: 95 | D14: 2020-11-01 | E14: 133 | F14: 152
B15: 12 | C15: 100 | D15: 2020-12-01 | E15: 140 | F15: 160

Sheet Conditional Formatting

Sheet TEXT, REPT
D3: =TEXT(TODAY(),"dddd, m/d/yyyy") -> Tuesday, 6/23/2020
D4: =TODAY() -> 2020-06-23
A11: =REPT("/\",500) -> /\/\/\/\/\/\/\/\/\/\/\/\/\/\/\/\/\/\/\/\/\/\/\/\/\/\/\/\/\/\/\/\/\/\/\/\/\/\/\/\/\/\/\/\/\/\/\/\/\/\/\/\/\/\/\/\/\/\/\/\/\/\/\/\/\/\/\/\/\/\/\/\/\/\/\/\/\/\/\/\/\/\/\/\/\/\/\/\/\/\/\/\/\/\/\/\/\/\/\/\/\/\/\/\/\/\/\/\/\/\/\/\/\/\/\/\/\/\/\/\/\/\/\/\/\/\/\/\/\/\/\/\/\/\/\/\/\/\/\/\/\/\/\/\/\/\/\/\/\/\/\/\/\/\/\/\/\/\/\/\/\/\/\/\/\/\/\/\/\/\/\/\/\/\/\/\/\/\/\/\/\/\/\/\/\/\/\/\/\/\/\/\/\/\/\/\/\/\/\/\/\/\/\/\/\/\/\/\/\/\/\/\/\/\/\/\/\/\/\/\/\/\/\/\/\/\/\/\/\/\/\/\/\/\/\/\/\/\/\/\/\/\/\/\/\/\/\/\/\/\/\/\/\/\/\/\/\/\/\/\/\/\/\/\/\/\/\/\/\/\/\/\/\/\/\/\/\/\/\/\/\/\/\/\/\/\/\/\/\/\/\/\/\/\/\/\/\/\/\/\/\/\/\/\/\/\/\/\/\/\/\/\/\/\/\/\/\/\/\/\/\/\/\/\/\/\/\/\/\/\/\/\/\/\/\/\/\/\/\/\/\/\/\/\/\/\/\/\/\/\/\/\/\/\/\/\/\/\/\/\/\/\/\/\/\/\/\/\/\/\/\/\/\/\/\/\/\/\/\/\/\/\/\/\/\/\/\/\/\/\/\/\/\/\/\/\/\/\/\/\/\/\/\/\/\/\/\/\/\/\/\/\/\/\/\/\/\/\/\/\/\/\/\/\/\/\/\/\/\/\/\/\/\/\/\/\/\/\/\/\/\/\/\/\/\/\/\/\/\/\/\/\/\/\/\/\/\/\/\/\/\/\/\/\/\/\/\/\/\/\/\/\/\/\/\/\/\/\/\/\/\/\/\/\/\/\/\/\/\/\/\/\/\/\/\/\/\/\/\/\
A12: =REPT("=",500) -> ====================================================================================================================================================================================================================================================================================================================================================================================================================================================================================================================
A13: =REPT("[-]",500) -> [-][-][-][-][-][-][-][-][-][-][-][-][-][-][-][-][-][-][-][-][-][-][-][-][-][-][-][-][-][-][-][-][-][-][-][-][-][-][-][-][-][-][-][-][-][-][-][-][-][-][-][-][-][-][-][-][-][-][-][-][-][-][-][-][-][-][-][-][-][-][-][-][-][-][-][-][-][-][-][-][-][-][-][-][-][-][-][-][-][-][-][-][-][-][-][-][-][-][-][-][-][-][-][-][-][-][-][-][-][-][-][-][-][-][-][-][-][-][-][-][-][-][-][-][-][-][-][-][-][-][-][-][-][-][-][-][-][-][-][-][-][-][-][-][-][-][-][-][-][-][-][-][-][-][-][-][-][-][-][-][-][-][-][-][-][-][-][-][-][-][-][-][-][-][-][-][-][-][-][-][-][-][-][-][-][-][-][-][-][-][-][-][-][-][-][-][-][-][-][-][-][-][-][-][-][-][-][-][-][-][-][-][-][-][-][-][-][-][-][-][-][-][-][-][-][-][-][-][-][-][-][-][-][-][-][-][-][-][-][-][-][-][-][-][-][-][-][-][-][-][-][-][-][-][-][-][-][-][-][-][-][-][-][-][-][-][-][-][-][-][-][-][-][-][-][-][-][-][-][-][-][-][-][-][-][-][-][-][-][-][-][-][-][-][-][-][-][-][-][-][-][-][-][-][-][-][-][-][-][-][-][-][-][-][-][-][-][-][-][-][-][-][-][-][-][-][-][-][-][-][-][-][-][-][-][-][-][-][-][-][-][-][-][-][-][-][-][-][-][-][-][-][-][-][-][-][-][-][-][-][-][-][-][-][-][-][-][-][-][-][-][-][-][-][-][-][-][-][-][-][-][-][-][-][-][-][-][-][-][-][-][-][-][-][-][-][-][-][-][-][-][-][-][-][-][-][-][-][-][-][-][-][-][-][-][-][-][-][-][-][-][-][-][-][-][-][-][-][-][-][-][-][-][-][-][-][-][-][-][-][-][-][-][-][-][-][-][-][-][-][-][-][-][-][-][-][-][-][-][-][-][-][-][-][-][-][-][-][-][-][-][-][-][-][-][-][-][-][-][-][-][-][-][-][-][-][-][-][-][-][-][-][-][-][-][-][-][-][-][-]
A14: =REPT("<>",500) -> <><><><><><><><><><><><><><><><><><><><><><><><><><><><><><><><><><><><><><><><><><><><><><><><><><><><><><><><><><><><><><><><><><><><><><><><><><><><><><><><><><><><><><><><><><><><><><><><><><><><><><><><><><><><><><><><><><><><><><><><><><><><><><><><><><><><><><><><><><><><><><><><><><><><><><><><><><><><><><><><><><><><><><><><><><><><><><><><><><><><><><><><><><><><><><><><><><><><><><><><><><><><><><><><><><><><><><><><><><><><><><><><><><><><><><><><><><><><><><><><><><><><><><><><><><><><><><><><><><><><><><><><><><><><><><><><><><><><><><><><><><><><><><><><><><><><><><><><><><><><><><><><><><><><><><><><><><><><><><><><><><><><><><><><><><><><><><><><><><><><><><><><><><><><><><><><><><><><><><><><><><><><><><><><><><><><><><><><><><><><><><><><><><><><><><><><><><><><><><><><><><><><><><><><><><><><><><><><><><><><><><><><><><><><><><><><><><><><><><><><><><><><><><><><><><><><><><><><><><><><><><><><><><><><><><><><><><><><><><><><><><><><><><><><><><><><><><><><><><><><>

Sheet Last String
A4: Start | C4: C:\MSOFFICE\EXCEL\LIBRARY\MSQUERY\MyFile.xlsx
A5: Finish | C5: =MID(C4,SEARCH(CHAR(222),SUBSTITUTE(C4,"\",CHAR(222),LEN(C4)-LEN(SUBSTITUTE(C4,"\",""))))+1,255) -> MyFile.xlsx
A6: Steps | C6: =LEN(C4)-LEN(SUBSTITUTE(C4,"\","")) -> 5
C7: =SUBSTITUTE(C4,"\",CHAR(222),C6) -> C:\MSOFFICE\EXCEL\LIBRARY\MSQUERYÞMyFile.xlsx
C8: =SEARCH(CHAR(222),C7) -> 34
C9: =MID(C4,C8+1,255) -> MyFile.xlsx

Sheet Wait

Sheet Right Click FH
A1: 2006-03-27 | B1: 25

Sheet Space Operator
B1: North | C1: West | D1: South | E1: East
A2: Things | B2: =INT(RAND()*100) -> 47 | C2: 79 | D2: 67 | E2: 98
A3: Gizmos | B3: 38 | C3: 31 | D3: 96 | E3: 40
A4: Objects | B4: 65 | C4: 50 | D4: 34 | E4: 45
C9: =West Gizmos -> 31

Sheet Picture
A1: dog
A6: dog
A7: cat
A8: baby

Sheet Advanced No Fmt, Prot Range
A1: 20 | B1: 20 | C1: =A1 -> 20
A2: 40 | B2: 40 | C2: 40
A3: 60 | B3: 60 | C3: 60
A4: 80 | B4: 80 | C4: 80
A5: 100 | B5: 100 | C5: 100
A6: 120 | B6: 120 | C6: 120
A7: 140 | B7: 140 | C7: 140 | G7: =0 -> 0 | H7: 0 | I7: 0 | J7: 0 | K7: 0
A8: 160 | B8: 160 | C8: 160 | F8: =0 -> 0 | G8: Protected range | H8: Protected range | I8: Protected range | J8: Protected range | K8: Protected range
A9: 180 | B9: 180 | C9: 180 | F9: 0 | G9: Protected range | H9: Protected range | I9: Protected range | J9: Protected range | K9: Protected range
A10: 200 | B10: 200 | C10: 200 | F10: 0 | G10: Protected range | H10: Protected range | I10: Protected range | J10: Protected range | K10: Protected range
A11: 220 | B11: 220 | C11: 220 | F11: 0 | G11: Protected range | H11: Protected range | I11: Protected range | J11: Protected range | K11: Protected range
A12: 240 | B12: 240 | C12: 240 | F12: 0 | G12: Protected range | H12: Protected range | I12: Protected range | J12: Protected range | K12: Protected range
A13: 260 | B13: 260 | C13: 260 | F13: 0 | G13: Protected range | H13: Protected range | I13: Protected range | J13: Protected range | K13: Protected range
A14: 280 | B14: 280 | C14: 280 | F14: 0 | G14: Protected range | H14: Protected range | I14: Protected range | J14: Protected range | K14: Protected range
A15: 300 | B15: 300 | C15: 300 | F15: 0 | G15: Protected range | H15: Protected range | I15: Protected range | J15: Protected range | K15: Protected range
F16: 0 | G16: Protected range | H16: Protected range | I16: Protected range | J16: Protected range | K16: Protected range
F17: 0 | G17: Protected range | H17: Protected range | I17: Protected range | J17: Protected range | K17: Protected range
F18: 0 | G18: Protected range | H18: Protected range | I18: Protected range | J18: Protected range | K18: Protected range
F19: 0 | G19: Protected range | H19: Protected range | I19: Protected range | J19: Protected range | K19: Protected range
F20: 0 | G20: Protected range | H20: Protected range | I20: Protected range | J20: Protected range | K20: Protected range
F21: 0 | G21: Protected range | H21: Protected range | I21: Protected range | J21: Protected range | K21: Protected range
F22: 0 | G22: Protected range | H22: Protected range | I22: Protected range | J22: Protected range | K22: Protected range
F23: 0 | G23: Protected range | H23: Protected range | I23: Protected range | J23: Protected range | K23: Protected range
F24: 0 | G24: Protected range | H24: Protected range | I24: Protected range | J24: Protected range | K24: Protected range
F25: 0 | G25: Protected range | H25: Protected range | I25: Protected range | J25: Protected range | K25: Protected range

Sheet Sort Columns
A1: Address | B1: Name | C1: State | D1: City | E1: Zip | G1: Want Name, Address, City, State, Zip
A2: 123 Main | B2: Name1 | C2: FL | D2: Orlando | E2: 12345
A3: 124 Main | B3: Name2 | C3: NY | D3: Albany | E3: 12346
A4: 125 Main | B4: Name3 | C4: WA | D4: Redmond | E4: 12347
A5: 126 Main | B5: Name4 | C5: TX | D5: Houston | E5: 12348
A6: 127 Main | B6: Name5 | C6: CA | D6: Orlando | E6: 12349
A7: 128 Main | B7: Name6 | C7: FL | D7: Albany | E7: 12350
A8: 129 Main | B8: Name7 | C8: NY | D8: Redmond | E8: 12351
A9: 130 Main | B9: Name8 | C9: WA | D9: Houston | E9: 12352
A10: 131 Main | B10: Name9 | C10: TX | D10: Orlando | E10: 12353
A11: 132 Main | B11: Name10 | C11: CA | D11: Albany | E11: 12354 | G11: Today | H11: End of month
A12: 133 Main | B12: Name11 | C12: FL | D12: Redmond | E12: 12355 | G12: =TODAY() -> 2020-06-23 | H12: =DATE(YEAR(G12),MONTH(G12)+1,0) -> 2020-06-30
A13: 134 Main | B13: Name12 | C13: NY | D13: Houston | E13: 12356
A14: 135 Main | B14: Name13 | C14: WA | D14: Orlando | E14: 12357
A15: 136 Main | B15: Name14 | C15: TX | D15: Albany | E15: 12358
A16: 137 Main | B16: Name15 | C16: CA | D16: Redmond | E16: 12359
A17: 138 Main | B17: Name16 | C17: FL | D17: Houston | E17: 12360
A18: 139 Main | B18: Name17 | C18: NY | D18: Orlando | E18: 12361
A19: 140 Main | B19: Name18 | C19: WA | D19: Albany | E19: 12362
A20: 141 Main | B20: Name19 | C20: TX | D20: Redmond | E20: 12363
A21: 142 Main | B21: Name20 | C21: CA | D21: Houston | E21: 12364

Sheet Number Wednesdays
A1: 2016-10-01
A2: =TODAY() -> 2020-06-23
A3: =SUM(N(WEEKDAY(ROW(INDIRECT(A1&":"&A2)))=4)) -> 194

Sheet Pictograph
A1: 1
A2: 2
A3: 3

Sheet Mailing Labels 1
A1: Jones, John
A2: JJAddress
A3: JJCity, State, Zip
A5: Adams, Jane
A6: JAAddress
A7: JA PO Box
A8: JACity, State, Zip
A10: Edwin, Frank
A11: FEAddress
A12: FECity, State, Zip
A14: Spencer, Tina
A15: TSAddress
A16: TSEmail
A17: TS PO Box
A18: TSCity, State, Zip

Sheet Mailing Labels 2
A1: Name1 | B1: Addr1 | C1: City, State Zip1
A2: Name2 | B2: Addr2 | C2: City, State Zip2
A3: Name3 | B3: Addr3 | C3: City, State Zip3
A4: Name4 | B4: Addr4 | C4: City, State Zip4
A5: Name5 | B5: Addr5 | C5: City, State Zip5
A6: Name6 | B6: Addr6 | C6: City, State Zip6
A7: Name7 | B7: Addr7 | C7: City, State Zip7
A8: Name8 | B8: Addr8 | C8: City, State Zip8
A9: Name9 | B9: Addr9 | C9: City, State Zip9
A10: Name10 | B10: Addr10 | C10: City, State Zip10
A11: Name11 | B11: Addr11 | C11: City, State Zip11
A12: Name12 | B12: Addr12 | C12: City, State Zip12
A13: Name13 | B13: Addr13 | C13: City, State Zip13
A14: Name14 | B14: Addr14 | C14: City, State Zip14
A15: Name15 | B15: Addr15 | C15: City, State Zip15
A16: Name16 | B16: Addr16 | C16: City, State Zip16
A17: Name17 | B17: Addr17 | C17: City, State Zip17
A18: Name18 | B18: Addr18 | C18: City, State Zip18
A19: Name19 | B19: Addr19 | C19: City, State Zip19
A20: Name20 | B20: Addr20 | C20: City, State Zip20
A21: Name21 | B21: Addr21 | C21: City, State Zip21
A22: Name22 | B22: Addr22 | C22: City, State Zip22
A23: Name23 | B23: Addr23 | C23: City, State Zip23
A24: Name24 | B24: Addr24 | C24: City, State Zip24
A25: Name25 | B25: Addr25 | C25: City, State Zip25
A26: Name26 | B26: Addr26 | C26: City, State Zip26
A27: Name27 | B27: Addr27 | C27: City, State Zip27
A28: Name28 | B28: Addr28 | C28: City, State Zip28
A29: Name29 | B29: Addr29 | C29: City, State Zip29
A30: Name30 | B30: Addr30 | C30: City, State Zip30

Sheet Mailing Labels 3
A1: Name1 | C1: =A1 -> Name1 | D1: =A2 -> address1 | E1: =A3 -> City, State Zip1 | G1: Using Sequence==> | H1: =INDEX(A:A,SEQUENCE(160/4,4))
A2: address1 | C2: =A5 -> Craig | D2: =A6 -> address2 | E2: =A7 -> City, State Zip2
A3: City, State Zip1
A5: Craig
A6: address2
A7: City, State Zip2
A9: Bob
A10: address3
A11: City, State Zip3
A13: Mary
A14: address4
A15: City, State Zip4
A17: Mark
A18: address5
A19: City, State Zip5
A21: Name6
A22: address6
A23: City, State Zip6
A25: Name7
A26: address7
A27: City, State Zip7
A29: Name8
A30: address8
A31: City, State Zip8
A33: Name9
A34: address9
A35: City, State Zip9
A37: Name10
A38: address10
A39: City, State Zip10
A41: Name11
A42: address11
A43: City, State Zip11
A45: Name12
A46: address12
A47: City, State Zip12
A49: Name13
A50: address13
A51: City, State Zip13
A53: Name14
A54: address14
A55: City, State Zip14
A57: Name15
A58: address15
A59: City, State Zip15
A61: Name16
A62: address16
A63: City, State Zip16
A65: Name17
A66: address17
A67: City, State Zip17
A69: Name18
A70: address18
A71: City, State Zip18
A73: Name19
A74: address19
A75: City, State Zip19
A77: Name20
A78: address20
A79: City, State Zip20
A81: Name21
A82: address21
A83: City, State Zip21
A85: Name22
A86: address22
A87: City, State Zip22
A89: Name23
A90: address23
A91: City, State Zip23
A93: Name24
A94: address24
A95: City, State Zip24
A97: Name25
A98: address25
A99: City, State Zip25
A101: Name26
A102: address26
A103: City, State Zip26
A105: Name27
A106: address27
A107: City, State Zip27
A109: Name28
A110: address28
A111: City, State Zip28
A113: Name29
A114: address29
A115: City, State Zip29
A117: Name30
A118: address30
A119: City, State Zip30
A121: Name31
A122: address31
A123: City, State Zip31
A125: Name32
A126: address32
A127: City, State Zip32
A129: Name33
A130: address33
A131: City, State Zip33
A133: Name34
A134: address34
A135: City, State Zip34
A137: Name35
A138: address35
A139: City, State Zip35
A141: Name36
A142: address36
A143: City, State Zip36
A145: Name37
A146: address37
A147: City, State Zip37
A149: Name38
A150: address38
A151: City, State Zip38
A153: Name39
A154: address39
A155: City, State Zip39
A157: Name40
A158: address40
A159: City, State Zip40

Sheet 1st and 15th
A1: 2010-01-01 | E1: 2010-01-01
B2: Create months, | E2: 2010-01-15
A3: 2010-02-01 | B3: insert cell above+14

Sheet Fill right, down
A1: Here's | C1: Here's | D1: the | E1: information | F1: to | G1: see | H1: top | I1: to | J1: bottom
A2: the
A3: information
A4: to
A5: see | D5: =A1 -> Here's
A6: left
A7: to
A8: right

Sheet Inner Series
A1: Rate | B1: 0.0325
A2: Nper | B2: 30
A3: PV | B3: 400000
B5: <office 365 | D5: office 365
B6: =IPMT($B$1/12,ROW(A1),$B$2*12,-$B$3) -> 1083.333333 | D6: =IPMT($B$1/12,_xlfn.SEQUENCE(16),$B$2*12,-$B$3) -> 1083.333333
B7: 1081.552626 | D7: 1081.552626
B8: 1079.767096 | D8: 1079.767096
B9: 1077.97673 | D9: 1077.97673
B10: 1076.181515 | D10: 1076.181515
B11: 1074.381438 | D11: 1074.381438
B12: 1072.576486 | D12: 1072.576486
B13: 1070.766646 | D13: 1070.766646
B14: 1068.951904 | D14: 1068.951904
B15: 1067.132247 | D15: 1067.132247
B16: 1065.307661 | D16: 1065.307661
B17: 1063.478134 | D17: 1063.478134
B18: 1061.643653 | D18: 1061.643653
B19: 1059.804202 | D19: 1059.804202
B20: 1057.95977 | D20: 1057.95977
B21: 1056.110343 | D21: 1056.110343

Sheet Random Sample
A1: Database of 100 items
A2: Item1 | C2: =RAND()<0.25 -> TRUE
A3: Item2
A4: Item3
A5: Item4
A6: Item5
A7: Item6
A8: Item7
A9: Item8
A10: Item9
A11: Item10
A12: Item11
A13: Item12
A14: Item13
A15: Item14
A16: Item15
A17: Item16
A18: Item17
A19: Item18
A20: Item19
A21: Item20
A22: Item21
A23: Item22
A24: Item23
A25: Item24
A26: Item25
A27: Item26
A28: Item27
A29: Item28
A30: Item29
A31: Item30
A32: Item31
A33: Item32
A34: Item33
A35: Item34
A36: Item35
A37: Item36
A38: Item37
A39: Item38
A40: Item39
A41: Item40
A42: Item41
A43: Item42
A44: Item43
A45: Item44
A46: Item45
A47: Item46
A48: Item47
A49: Item48
A50: Item49
A51: Item50
A52: Item51
A53: Item52
A54: Item53
A55: Item54
A56: Item55
A57: Item56
A58: Item57
A59: Item58
A60: Item59
A61: Item60
A62: Item61
A63: Item62
A64: Item63
A65: Item64
A66: Item65
A67: Item66
A68: Item67
A69: Item68
A70: Item69
A71: Item70
A72: Item71
A73: Item72
A74: Item73
A75: Item74
A76: Item75
A77: Item76
A78: Item77
A79: Item78
A80: Item79
A81: Item80
A82: Item81
A83: Item82
A84: Item83
A85: Item84
A86: Item85
A87: Item86
A88: Item87
A89: Item88
A90: Item89
A91: Item90
A92: Item91
A93: Item92
A94: Item93
A95: Item94
A96: Item95
A97: Item96
A98: Item97
A99: Item98
A100: Item99
A101: Item100

Sheet Auto Number Qs
A1: Question# | B1: Question
A2: =MAX(A$1:A1)+1 -> 1 | B2: Blah blah blah blah blah blah blah blah blah blah
B3: Blah blah blah blah blah blah blah blah blah blah
B4: Blah blah blah blah blah blah blah blah blah blah
B5: Blah blah blah blah blah blah blah blah blah blah
A7: =MAX(A$1:A6)+1 -> 2 | B7: Blah blah blah blah blah blah blah blah blah blah
B8: Blah blah blah blah blah blah blah blah blah blah
B9: Blah blah blah blah blah blah blah blah blah blah
A11: =MAX(A$1:A10)+1 -> 3 | B11: Blah blah blah blah blah blah blah blah blah blah
B12: Blah blah blah blah blah blah blah blah blah blah
B13: Blah blah blah blah blah blah blah blah blah blah
A15: =MAX(A$1:A14)+1 -> 4 | B15: Blah blah blah blah blah blah blah blah blah blah
B16: Blah blah blah blah blah blah blah blah blah blah
B17: Blah blah blah blah blah blah blah blah blah blah
B18: Blah blah blah blah blah blah blah blah blah blah
A20: =MAX(A$1:A19)+1 -> 5 | B20: Blah blah blah blah blah blah blah blah blah blah
B21: Blah blah blah blah blah blah blah blah blah blah
A23: =MAX(A$1:A22)+1 -> 6 | B23: Blah blah blah blah blah blah blah blah blah blah
B24: Blah blah blah blah blah blah blah blah blah blah
B25: Blah blah blah blah blah blah blah blah blah blah
B26: Blah blah blah blah blah blah blah blah blah blah
A28: =MAX(A$1:A27)+1 -> 7 | B28: Blah blah blah blah blah blah blah blah blah blah
B29: Blah blah blah blah blah blah blah blah blah blah
B30: Blah blah blah blah blah blah blah blah blah blah

Sheet Self-defining Range
A1: Jan | B1: Feb | C1: Mar | D1: Apr | E1: May
A2: 963 | B2: 30 | C2: 830 | D2: 67 | E2: 395
A3: 791 | B3: 942 | C3: 877 | D3: 536 | E3: 286
A4: 932 | B4: 23 | C4: 931 | D4: 102 | E4: 249
A5: 976 | B5: 248 | C5: 190 | D5: 228 | E5: 503
A6: 375 | B6: 463 | C6: 350 | D6: 324 | E6: 48
A7: 839 | B7: 21 | C7: 409 | D7: 327 | E7: 617
A8: 352 | B8: 874 | C8: 165 | D8: 615 | E8: 81
A9: 383 | B9: 918 | C9: 245 | D9: 869 | E9: 112
A10: 807 | B10: 221 | C10: 530 | D10: 591 | E10: 842
A11: 446 | B11: 373 | C11: 817 | D11: 786 | E11: 82
A12: 896 | B12: 84 | C12: 290 | D12: 505 | E12: 839
A13: 389 | B13: 285 | C13: 778 | D13: 447 | E13: 979
A14: 294 | B14: 856 | C14: 394 | D14: 857 | E14: 743
A15: 975 | B15: 883 | C15: 837 | D15: 974 | E15: 280

Sheet Printing Remote Areas
A1: Area1 | B1: Area1 | C1: Area1 | D1: Area1 | E1: Area1
A2: Area1 | B2: Area1 | C2: Area1 | D2: Area1 | E2: Area1
A3: Area1 | B3: Area1 | C3: Area1 | D3: Area1 | E3: Area1
A4: Area1 | B4: Area1 | C4: Area1 | D4: Area1 | E4: Area1 | W4: Area3 | X4: Area3 | Y4: Area3
A5: Area1 | B5: Area1 | C5: Area1 | D5: Area1 | E5: Area1 | W5: Area3 | X5: Area3 | Y5: Area3
A6: Area1 | B6: Area1 | C6: Area1 | D6: Area1 | E6: Area1 | W6: Area3 | X6: Area3 | Y6: Area3
A7: Area1 | B7: Area1 | C7: Area1 | D7: Area1 | E7: Area1 | W7: Area3 | X7: Area3 | Y7: Area3
A8: Area1 | B8: Area1 | C8: Area1 | D8: Area1 | E8: Area1 | W8: Area3 | X8: Area3 | Y8: Area3
A9: Area1 | B9: Area1 | C9: Area1 | D9: Area1 | E9: Area1 | W9: Area3 | X9: Area3 | Y9: Area3
A10: Area1 | B10: Area1 | C10: Area1 | D10: Area1 | E10: Area1 | W10: Area3 | X10: Area3 | Y10: Area3
A11: Area1 | B11: Area1 | C11: Area1 | D11: Area1 | E11: Area1 | M11: Area2 | N11: Area2 | O11: Area2 | P11: Area2 | Q11: Area2 | R11: Area2 | W11: Area3 | X11: Area3 | Y11: Area3
A12: Area1 | B12: Area1 | C12: Area1 | D12: Area1 | E12: Area1 | M12: Area2 | N12: Area2 | O12: Area2 | P12: Area2 | Q12: Area2 | R12: Area2 | W12: Area3 | X12: Area3 | Y12: Area3
M13: Area2 | N13: Area2 | O13: Area2 | P13: Area2 | Q13: Area2 | R13: Area2 | W13: Area3 | X13: Area3 | Y13: Area3
M14: Area2 | N14: Area2 | O14: Area2 | P14: Area2 | Q14: Area2 | R14: Area2 | W14: Area3 | X14: Area3 | Y14: Area3
M15: Area2 | N15: Area2 | O15: Area2 | P15: Area2 | Q15: Area2 | R15: Area2 | W15: Area3 | X15: Area3 | Y15: Area3
M16: Area2 | N16: Area2 | O16: Area2 | P16: Area2 | Q16: Area2 | R16: Area2 | W16: Area3 | X16: Area3 | Y16: Area3
M17: Area2 | N17: Area2 | O17: Area2 | P17: Area2 | Q17: Area2 | R17: Area2 | W17: Area3 | X17: Area3 | Y17: Area3
M18: Area2 | N18: Area2 | O18: Area2 | P18: Area2 | Q18: Area2 | R18: Area2 | W18: Area3 | X18: Area3 | Y18: Area3
M19: Area2 | N19: Area2 | O19: Area2 | P19: Area2 | Q19: Area2 | R19: Area2 | W19: Area3 | X19: Area3 | Y19: Area3
W20: Area3 | X20: Area3 | Y20: Area3
W21: Area3 | X21: Area3 | Y21: Area3
W22: Area3 | X22: Area3 | Y22: Area3
W23: Area3 | X23: Area3 | Y23: Area3
W24: Area3 | X24: Area3 | Y24: Area3

Sheet Ctrl-6
F13: 1

Sheet Advanced Filter
C1: Use AnotherRg as name, filter to A1, choose Unique

Sheet Aligning Objects
A6: Align
G8: Distribute

Sheet Custom List
A1: =CHAR(_xlfn.SEQUENCE(26,1,65)) -> A | B1: =CHAR(_xlfn.SEQUENCE(26,1,97)) -> a
A2: B | B2: b
A3: C | B3: c
A4: D | B4: d
A5: E | B5: e
A6: F | B6: f
A7: G | B7: g
A8: H | B8: h
A9: I | B9: i
A10: J | B10: j
A11: K | B11: k
A12: L | B12: l
A13: M | B13: m
A14: N | B14: n
A15: O | B15: o
A16: P | B16: p
A17: Q | B17: q
A18: R | B18: r
A19: S | B19: s
A20: T | B20: t
A21: U | B21: u
A22: V | B22: v
A23: W | B23: w
A24: X | B24: x
A25: Y | B25: y
A26: Z | B26: z

Sheet Whats This
RG2: What sea creature is this?

Sheet Add Time
B1: 03:15:00
B2: 04:15:00
B3: 05:15:00
B4: 06:15:00
B5: 07:15:00
A6: Total Time | B6: =SUM(B1:B5) -> 1.09375 | C6: =SUM(B1:B5) -> 1.09375

Sheet Dynamic Array
A1: =INDEX(_xlfn.SORTBY(_xlfn.SEQUENCE(9),_xlfn.RANDARRAY(9)),_xlfn.SEQUENCE(3,3)) -> 9 | B1: 6 | C1: 5 | F1: =_xlfn.SEQUENCE(9) -> 1 | G1: =_xlfn.RANDARRAY(9) -> 0.1071794679
A2: 7 | B2: 3 | C2: 4 | F2: 2 | G2: 0.4676796186 | I2: Want 3x3 grid of non-repeating integers 1-9
A3: 8 | B3: 2 | C3: 1 | F3: 3 | G3: 0.01423015864
F4: 4 | G4: 0.3686074065
F5: 5 | G5: 0.5036114696
F6: 6 | G6: 0.3243044055
F7: 7 | G7: 0.9944175498
F8: 8 | G8: 0.006867666931
F9: 9 | G9: 0.9529198733

Sheet VBA
A1: Locals window is read/write
A2: 1
A3: You can bookmark the Immediate Window

Sheet Amazing Formula
A1: Subtotal 109: | B1: =SUBTOTAL(109,'Supporting Data'!C:C) -> 592763 | I1: =_xlfn.FORMULATEXT(B1) -> =SUBTOTAL(109,'Supporting Data'!C:C)
B2: =SUMPRODUCT(SUBTOTAL(109,'Supporting Data'!C2:C123),N('Supporting Data'!$A$2:$A$123=A5)) ->  | I2: =_xlfn.FORMULATEXT(B2) -> =SUMPRODUCT(SUBTOTAL(109,'Supporting Data'!C2:C123),N('Supporting Data'!$A$2:$A$123=A5))
A4: Service | B4: Total | D4: Alternate
A5: ES | B5: =SUMPRODUCT(SUBTOTAL(109,OFFSET('Supporting Data'!$C$1,_xlfn.SEQUENCE(122),0)),N('Supporting Data'!$A$2:$A$123=A5)) -> 131174 | D5: =SUMIF('Supporting Data'!$A$2:$A$123,A5,'Supporting Data'!$G$2:$G$123) -> 131174
A6: BU | B6: =SUMPRODUCT(SUBTOTAL(109,OFFSET('Supporting Data'!$C$1,_xlfn.SEQUENCE(122),0)),N('Supporting Data'!$A$2:$A$123=A6)) -> 96757 | D6: =SUMIF('Supporting Data'!$A$2:$A$123,A6,'Supporting Data'!$G$2:$G$123) -> 96757
A7: AW | B7: =SUMPRODUCT(SUBTOTAL(109,OFFSET('Supporting Data'!$C$1,_xlfn.SEQUENCE(122),0)),N('Supporting Data'!$A$2:$A$123=A7)) -> 129093 | D7: =SUMIF('Supporting Data'!$A$2:$A$123,A7,'Supporting Data'!$G$2:$G$123) -> 129093
A8: NNR | B8: =SUMPRODUCT(SUBTOTAL(109,OFFSET('Supporting Data'!$C$1,_xlfn.SEQUENCE(122),0)),N('Supporting Data'!$A$2:$A$123=A8)) -> 129979 | D8: =SUMIF('Supporting Data'!$A$2:$A$123,A8,'Supporting Data'!$G$2:$G$123) -> 129979
A9: JKP | B9: =SUMPRODUCT(SUBTOTAL(109,OFFSET('Supporting Data'!$C$1,ROW($1:$122),0)),N('Supporting Data'!$A$2:$A$123=A9)) -> 105760 | D9: =SUMIF('Supporting Data'!$A$2:$A$123,A9,'Supporting Data'!$G$2:$G$123) -> 105760
A11: Total | B11: =SUM(B5:B10) -> 592763 | D11: =SUM(D5:D10) -> 592763 | I11: =_xlfn.FORMULATEXT(B11) -> =SUM(B5:B10)

Sheet Supporting Data
A1: Service | B1: City | C1: Amount | D1: Date | J1: =G3 -> 2475
A2: JKP | B2: New York | C2: 3112 | D2: 2017-02-08T15:14:34.545 | G2: =SUBTOTAL(109,C2) -> 3112
A3: ES | B3: New York | C3: 2475 | D3: 2017-10-19T09:10:36.422 | G3: =SUBTOTAL(109,C3) -> 2475
A4: AW | B4: Miami | C4: 2018 | D4: 2017-05-08T19:42:18.601 | G4: 2018
A5: AW | B5: Atlanta | C5: 9893 | D5: 2017-06-18T15:24:07.956 | G5: 9893
A6: BU | B6: Amsterdam | C6: 328 | D6: 2017-01-05T04:22:57.065 | G6: 328
A7: ES | B7: Atlanta | C7: 597 | D7: 2017-01-09T01:53:42.337 | G7: 597
A8: BU | B8: Atlanta | C8: 2607 | D8: 2017-06-04T11:03:52.625 | G8: 2607
A9: NNR | B9: Boston | C9: 5278 | D9: 2017-09-05T14:11:52.324 | G9: 5278
A10: NNR | B10: Amsterdam | C10: 1836 | D10: 2018-02-04T13:09:25.393 | G10: 1836
A11: BU | B11: San Francisco | C11: 73 | D11: 2017-05-04T14:39:50.634 | G11: 73
A12: JKP | B12: Miami | C12: 2667 | D12: 2017-12-15T22:29:27.162 | G12: 2667
A13: ES | B13: New York | C13: 4215 | D13: 2017-03-26T00:19:59.732 | G13: 4215
A14: AW | B14: Los Angeles | C14: 124 | D14: 2017-02-01T19:13:04.969 | G14: 124
A15: AW | B15: Amsterdam | C15: 4525 | D15: 2017-01-11T07:33:28.610 | G15: 4525
A16: AW | B16: San Francisco | C16: 2958 | D16: 2017-02-16T19:25:55.666 | G16: 2958
A17: NNR | B17: New York | C17: 9237 | D17: 2017-08-02T00:48:14.659 | G17: 9237
A18: BU | B18: San Francisco | C18: 5193 | D18: 2017-03-28T17:30:34.910 | G18: 5193
A19: ES | B19: Boston | C19: 2832 | D19: 2017-05-23T13:48:37.024 | G19: 2832
A20: ES | B20: San Francisco | C20: 9005 | D20: 2017-07-15T22:27:43.978 | G20: 9005
A21: BU | B21: Redmond | C21: 962 | D21: 2017-02-03T05:09:41.751 | G21: 962
A22: ES | B22: Redmond | C22: 2720 | D22: 2017-03-04T04:27:30.321 | G22: 2720
A23: ES | B23: Miami | C23: 5814 | D23: 2017-01-19T15:04:34.878 | G23: 5814
A24: NNR | B24: Atlanta | C24: 3720 | D24: 2017-01-06T01:06:19.557 | G24: 3720
A25: NNR | B25: San Francisco | C25: 523 | D25: 2017-10-04T04:42:00.955 | G25: 523
A26: NNR | B26: Redmond | C26: 8947 | D26: 2017-07-31T17:13:17.558 | G26: 8947
A27: AW | B27: Miami | C27: 2300 | D27: 2017-02-10T13:40:46.544 | G27: 2300
A28: JKP | B28: Amsterdam | C28: 629 | D28: 2017-05-09T08:57:24.131 | G28: 629
A29: BU | B29: Redmond | C29: 1736 | D29: 2017-04-15T23:51:48.458 | G29: 1736
A30: NNR | B30: San Francisco | C30: 3320 | D30: 2017-07-12T04:07:52.866 | G30: 3320
A31: AW | B31: Atlanta | C31: 2505 | D31: 2017-03-06T22:47:14.083 | G31: 2505
A32: AW | B32: Los Angeles | C32: 2088 | D32: 2017-01-01T08:04:45.694 | G32: 2088
A33: AW | B33: Boston | C33: 8038 | D33: 2017-03-30T06:03:08.027 | G33: 8038
A34: ES | B34: Atlanta | C34: 8308 | D34: 2017-03-10T01:07:32.439 | G34: 8308
A35: BU | B35: Miami | C35: 1290 | D35: 2017-09-16T08:45:03.946 | G35: 1290
A36: AW | B36: Miami | C36: 6970 | D36: 2017-02-19T23:40:59.497 | G36: 6970
A37: AW | B37: San Francisco | C37: 930 | D37: 2017-04-09T02:03:12.128 | G37: 930
A38: ES | B38: Redmond | C38: 6840 | D38: 2017-12-12T19:06:40.073 | G38: 6840
A39: JKP | B39: Atlanta | C39: 6333 | D39: 2018-01-09T18:54:14.430 | G39: 6333
A40: JKP | B40: Redmond | C40: 5880 | D40: 2017-04-22T04:22:31.902 | G40: 5880
A41: NNR | B41: Boston | C41: 7929 | D41: 2017-10-03T23:47:46.051 | G41: 7929
A42: ES | B42: Boston | C42: 9954 | D42: 2017-01-04T12:17:40.792 | G42: 9954
A43: JKP | B43: Atlanta | C43: 7213 | D43: 2017-04-02T06:07:35.398 | G43: 7213
A44: BU | B44: New York | C44: 8389 | D44: 2017-06-16T15:41:03.033 | G44: 8389
A45: ES | B45: Amsterdam | C45: 9347 | D45: 2017-12-30T09:54:45.351 | G45: 9347
A46: NNR | B46: San Francisco | C46: 6693 | D46: 2017-06-13T07:39:04.992 | G46: 6693
A47: AW | B47: New York | C47: 9268 | D47: 2017-04-04T10:21:26.347 | G47: 9268
A48: AW | B48: Boston | C48: 7837 | D48: 2017-03-10T15:21:45.123 | G48: 7837
A49: JKP | B49: San Francisco | C49: 177 | D49: 2017-10-20T02:21:56.032 | G49: 177
A50: JKP | B50: New York | C50: 5690 | D50: 2017-01-28T16:06:33.903 | G50: 5690
A51: ES | B51: New York | C51: 6379 | D51: 2017-03-05T02:25:46.525 | G51: 6379
A52: NNR | B52: Amsterdam | C52: 7858 | D52: 2017-11-03T07:19:11.022 | G52: 7858
A53: AW | B53: Amsterdam | C53: 5010 | D53: 2017-12-26T22:55:49.320 | G53: 5010
A54: JKP | B54: Los Angeles | C54: 1756 | D54: 2017-11-01T04:48:52.429 | G54: 1756
A55: BU | B55: Miami | C55: 5424 | D55: 2017-03-24T04:09:18.748 | G55: 5424
A56: BU | B56: Amsterdam | C56: 9641 | D56: 2017-03-14T03:00:15.508 | G56: 9641
A57: ES | B57: Los Angeles | C57: 1788 | D57: 2017-07-29T14:14:15.493 | G57: 1788
A58: BU | B58: New York | C58: 7939 | D58: 2017-05-04T17:39:34.195 | G58: 7939
A59: ES | B59: Los Angeles | C59: 2905 | D59: 2017-06-06T16:56:29.781 | G59: 2905
A60: NNR | B60: Los Angeles | C60: 989 | D60: 2018-01-08T08:37:52.395 | G60: 989
A61: ES | B61: Miami | C61: 1690 | D61: 2017-10-29T02:28:00.841 | G61: 1690
A62: NNR | B62: New York | C62: 8418 | D62: 2017-10-29T03:48:03.358 | G62: 8418
A63: JKP | B63: Miami | C63: 9529 | D63: 2017-10-11T07:11:54.134 | G63: 9529
A64: AW | B64: Redmond | C64: 7153 | D64: 2017-09-09T15:11:27.852 | G64: 7153
A65: BU | B65: Boston | C65: 6886 | D65: 2017-12-21T20:48:55.178 | G65: 6886
A66: JKP | B66: Boston | C66: 7401 | D66: 2017-01-13T17:13:59.896 | G66: 7401
A67: BU | B67: New York | C67: 1971 | D67: 2017-06-24T00:19:47.244 | G67: =SUBTOTAL(109,C67) -> 1971
A68: BU | B68: New York | C68: 5806 | D68: 2017-05-20T02:59:12.638 | G68: 5806
A69: JKP | B69: Los Angeles | C69: 7576 | D69: 2017-12-04T10:05:40.033 | G69: 7576
A70: ES | B70: Redmond | C70: 5572 | D70: 2017-07-22T15:00:28.992 | G70: 5572
A71: BU | B71: San Francisco | C71: 3107 | D71: 2017-10-22T02:39:45.516 | G71: 3107
A72: NNR | B72: Atlanta | C72: 7122 | D72: 2017-07-20T19:04:19.280 | G72: 7122
A73: JKP | B73: Amsterdam | C73: 2821 | D73: 2017-08-24T15:37:38.033 | G73: 2821
A74: AW | B74: Los Angeles | C74: 929 | D74: 2017-07-12T04:58:20.745 | G74: 929
A75: NNR | B75: Atlanta | C75: 7983 | D75: 2017-05-13T05:48:28.434 | G75: 7983
A76: ES | B76: Amsterdam | C76: 7931 | D76: 2017-06-05T07:37:44.096 | G76: 7931
A77: NNR | B77: New York | C77: 2602 | D77: 2017-08-20T03:25:49.442 | G77: 2602
A78: BU | B78: Redmond | C78: 9469 | D78: 2017-09-09T17:25:40.205 | G78: 9469
A79: BU | B79: Atlanta | C79: 4034 | D79: 2017-07-30T17:14:11.888 | G79: 4034
A80: BU | B80: Los Angeles | C80: 6700 | D80: 2017-12-16T15:00:19.036 | G80: 6700
A81: NNR | B81: Los Angeles | C81: 8875 | D81: 2017-07-14T21:04:02.392 | G81: 8875
A82: JKP | B82: Redmond | C82: 1246 | D82: 2017-01-18T00:42:43.943 | G82: 1246
A83: ES | B83: San Francisco | C83: 4348 | D83: 2017-06-25T20:58:39.168 | G83: 4348
A84: NNR | B84: Miami | C84: 8241 | D84: 2017-03-04T01:08:58.742 | G84: 8241
A85: AW | B85: New York | C85: 5968 | D85: 2017-01-11T08:37:51.645 | G85: 5968
A86: BU | B86: Boston | C86: 2148 | D86: 2017-11-27T19:39:50.071 | G86: 2148
A87: ES | B87: Amsterdam | C87: 700 | D87: 2018-02-02T11:25:59.986 | G87: 700
A88: AW | B88: Amsterdam | C88: 3208 | D88: 2017-02-09T08:23:09.705 | G88: 3208
A89: JKP | B89: Boston | C89: 2931 | D89: 2017-01-04T09:43:19.894 | G89: 2931
A90: JKP | B90: Boston | C90: 4179 | D90: 2017-06-25T07:05:53.619 | G90: 4179
A91: JKP | B91: Amsterdam | C91: 2959 | D91: 2017-02-28T05:43:18.699 | G91: 2959
A92: NNR | B92: Miami | C92: 9383 | D92: 2017-03-06T13:27:30.006 | G92: 9383
A93: AW | B93: Redmond | C93: 4785 | D93: 2017-01-24T01:11:44.239 | G93: 4785
A94: NNR | B94: Boston | C94: 3499 | D94: 2017-02-19T03:44:01.080 | G94: 3499
A95: AW | B95: San Francisco | C95: 7652 | D95: 2017-01-13T13:02:22.553 | G95: 7652
A96: NNR | B96: Los Angeles | C96: 3020 | D96: 2017-07-06T09:35:54.722 | G96: 3020
A97: BU | B97: Amsterdam | C97: 1578 | D97: 2018-01-08T18:58:34.084 | G97: 1578
A98: AW | B98: Redmond | C98: 9700 | D98: 2017-06-28T09:45:09.800 | G98: 9700
A99: JKP | B99: Redmond | C99: 7849 | D99: 2017-03-12T00:16:48.242 | G99: 7849
A100: JKP | B100: Miami | C100: 8188 | D100: 2017-03-03T19:05:22.274 | G100: 8188
A101: AW | B101: Boston | C101: 6959 | D101: 2017-04-28T13:47:10.849 | G101: 6959
A102: ES | B102: Boston | C102: 7813 | D102: 2017-10-13T03:34:24.691 | G102: 7813
A103: BU | B103: Atlanta | C103: 1197 | D103: 2017-02-08T15:16:56.646 | G103: 1197
A104: JKP | B104: San Francisco | C104: 789 | D104: 2017-09-29T12:16:56.117 | G104: 789
A105: AW | B105: New York | C105: 9553 | D105: 2017-09-23T16:05:32.094 | G105: 9553
A106: AW | B106: Atlanta | C106: 8722 | D106: 2017-04-30T18:52:47.211 | G106: 8722
A107: BU | B107: Los Angeles | C107: 744 | D107: 2017-02-16T13:24:02.805 | G107: 744
A108: BU | B108: Miami | C108: 4373 | D108: 2017-03-23T14:51:23.986 | G108: 4373
A109: NNR | B109: Redmond | C109: 6514 | D109: 2017-01-07T23:09:40.035 | G109: 6514
A110: NNR | B110: Miami | C110: 2740 | D110: 2017-06-22T16:24:54.398 | G110: 2740
A111: JKP | B111: New York | C111: 2263 | D111: 2017-02-10T03:57:49.751 | G111: 2263
A112: BU | B112: Los Angeles | C112: 3515 | D112: 2017-06-26T16:19:07.901 | G112: 3515
A113: ES | B113: San Francisco | C113: 4862 | D113: 2017-03-24T09:09:21.043 | G113: 4862
A114: ES | B114: Atlanta | C114: 5478 | D114: 2017-04-02T10:42:10.711 | G114: 5478
A115: JKP | B115: San Francisco | C115: 4575 | D115: 2017-01-15T07:31:05.526 | G115: 4575
A116: JKP | B116: Los Angeles | C116: 1379 | D116: 2017-06-09T19:41:40.251 | G116: 1379
A117: ES | B117: Los Angeles | C117: 8809 | D117: 2017-05-30T04:23:39.372 | G117: 8809
A118: JKP | B118: Atlanta | C118: 8618 | D118: 2017-03-22T09:17:50.560 | G118: 8618
A119: ES | B119: Miami | C119: 1635 | D119: 2017-01-10T11:52:27.245 | G119: 1635
A120: BU | B120: Boston | C120: 1647 | D120: 2017-09-19T05:49:47.902 | G120: 1647
A121: NNR | B121: Redmond | C121: 295 | D121: 2017-10-04T15:24:49.305 | G121: 295
A122: ES | B122: Amsterdam | C122: 9157 | D122: 2017-05-09T03:45:10.013 | G122: 9157
A123: NNR | B123: Amsterdam | C123: 4957 | D123: 2017-01-12T08:10:30.318 | G123: 4957

Sheet Miscellaneous
A1: Shift/fill handle to insert/delete
A2: right-click border drag & drop
A3: Right-click drag fillhandle options
A4: Clear print area by selecting all cells & setting print area
A5: Ctrl/shift 1-2-3-4-5-6 for formatting
A6: ctrl/quote to copy VALUE of above cell
A7: defining names with leading "!" to make it global, or =INDIRECT("r[-1]c",FALSE)
A8: Using row(), Column() inside formula to get 1,2,3,… as in =SUBTOTAL(COLUMN(),A1:A5) & fill right to get all the subtotal commands
A9: defining names for large multi selection, like clr =clr1,clr2,clr3
A10: Temporarily changing name of long sheet name to short one to get more in multi select name
A11: using criteria of rand()<.25 to get a 25% sample of records
A12: TEXT function to get dates into narrow columns
A13: Using *. In formatting for fill effect; using Fill in horizontal alignment
A14: ctrl enter single cell to leave cursor in cell
A15: using ctrl/left bracket to open files
A16: =West gizmos to get intersection
A17: Ctrl/period to move you around the corners
A18: Print many worksheets at once by group mode
A19: shift/click No when closing all documents = "no to all"
A20: alt/= (esp 2x) simulates clicking auto-sum tool
A21: Camera tool to print remote parts of ws on same page
A22: Insert/Name: you can scroll when cursor is in the refers to box
A23: Protect remote ranges with gardol shield
A24: ctrl/backspace brings remove area into view; shift/bs does same but reduces selection to active cell
A25: end of month: =DATE(YEAR(A10),MONTH(A10)+1,0)
A26: F5/goto allows quick return
A27: formula to get last used row
A28: Shift/F5 -- active cell is anchored
A29: Using Window/New Window - order of arrange all by clicking in reverse order!
A30: F5 from worksheet can access VBA sub
A31: double-click format painter to keep it active;Lock drawing mode for drawing tools
A32: change to R1C1 format to copy formula from formula bar to paste into VBA
A33: Text can be formatted by characters in a cell (not formulas)
A34: If you use a hyperlink, Alt/left arrow to get back
A35: Formatting % can use a fixed fraction, as # ??/64
A36: In Userforms, object with white handle is "master" for formatting
A37: Use ctrl/V,X for images in userforms
A38: Userform - make your own set of tools
A39: Add pages to vba's toolbox
A40: Use immediate window as calculator
A41: GetCustomListContents in initializing userform
A42: Bookmarks in VBA; Last position in VBA
A43: from cell A1, create a simple name, like z, which references cell !Z100 as a relative reference (with the leading exclamation) and when you edit/goto
A44: another range, named or not, you can add :z to ensure the top left cell of the range is scrolled to the top left. Then, shift/backspace selects only active cell.
A45: bulk remove leading ' by copying unused cell, paste/special & include the "Add" option
A46: What is that :1, :2… I see in the workbook title?
A47: Deleting Named Range when hundreds of names are defined
A48: Wish there were a “No to All” when closing many files?

Sheet Email
F4: I can be reached at:
F5: BobUmlas@Hotmail.com
F7: You can find my other books by typing
G8: Umlas
F9: into Amazon.com
